Workbook

Sheet Blank Template (hidden)
B1: Strategic Risk Area:
B3: No. | C3: Risk (what could happen) | D3: Risk Owner | E3: Risk Manager | F3: Consequences (how would this affect the University) | G3: Likelihood | H3: Impact | I3: Unmitigated Score (gross) | L3: Response | M3: Mitigations (what is being/has been done to control the risk) | N3: Status (in place/in progress/under consideration) | O3: Likelihood | P3: Impact | Q3: Mitigated Score (net) | T3: Risk Movement
I4: n | J4: =IF(K4<4,"GREEN",IF(AND(K4>3,K4<7),"YELLOW",IF(AND(K4>7,K4<10),"AMBER",IF(AND(K4>9,K4<17),"RED","ERROR")))) -> GREEN | K4: =G4*H4 -> 0 | Q4: n | R4: =IF(S4<4,"GREEN",IF(AND(S4>3,S4<7),"YELLOW",IF(AND(S4>7,S4<10),"AMBER",IF(AND(S4>9,S4<17),"RED","ERROR")))) -> GREEN | S4: =O4*P4 -> 0 | T4: Up
I5: n | J5: =IF(K5<4,"GREEN",IF(AND(K5>3,K5<7),"YELLOW",IF(AND(K5>7,K5<10),"AMBER",IF(AND(K5>9,K5<17),"RED","ERROR")))) -> GREEN | K5: 0 | Q5: n | R5: =IF(S5<4,"GREEN",IF(AND(S5>3,S5<7),"YELLOW",IF(AND(S5>7,S5<10),"AMBER",IF(AND(S5>9,S5<17),"RED","ERROR")))) -> GREEN | S5: =O5*P5 -> 0 | T5: Down
I6: n | J6: =IF(K6<4,"GREEN",IF(AND(K6>3,K6<7),"YELLOW",IF(AND(K6>7,K6<10),"AMBER",IF(AND(K6>9,K6<17),"RED","ERROR")))) -> GREEN | K6: 0 | Q6: n | R6: =IF(S6<4,"GREEN",IF(AND(S6>3,S6<7),"YELLOW",IF(AND(S6>7,S6<10),"AMBER",IF(AND(S6>9,S6<17),"RED","ERROR")))) -> GREEN | S6: 0 | T6: No Change
I7: n | J7: GREEN | K7: 0 | Q7: n | R7: GREEN | S7: 0 | T7: New Risk
I8: n | J8: GREEN | K8: 0 | Q8: n | R8: GREEN | S8: 0 | T8: Up
I9: n | J9: GREEN | K9: 0 | Q9: n | R9: GREEN | S9: 0
I10: n | J10: GREEN | K10: 0 | Q10: n | R10: GREEN | S10: 0
I11: n | J11: GREEN | K11: 0 | Q11: n | R11: GREEN | S11: 0
I12: n | J12: GREEN | K12: 0 | Q12: n | R12: GREEN | S12: 0
I13: n | J13: GREEN | K13: 0 | Q13: n | R13: GREEN | S13: 0
I14: n | J14: GREEN | K14: 0 | Q14: n | R14: GREEN | S14: 0
I15: n | J15: GREEN | K15: 0 | Q15: n | R15: GREEN | S15: 0
I16: n | J16: GREEN | K16: 0 | Q16: n | R16: GREEN | S16: 0
I17: n | J17: GREEN | K17: 0 | Q17: n | R17: GREEN | S17: 0
I18: n | J18: GREEN | K18: 0 | Q18: n | R18: GREEN | S18: 0
I19: n | J19: GREEN | K19: 0 | Q19: n | R19: GREEN | S19: 0
I20: n | J20: GREEN | K20: 0 | Q20: n | R20: GREEN | S20: 0
I21: n | J21: GREEN | K21: 0 | Q21: n | R21: GREEN | S21: 0
I22: n | J22: GREEN | K22: 0 | Q22: n | R22: GREEN | S22: 0
I23: n | J23: GREEN | K23: 0 | Q23: n | R23: GREEN | S23: 0
I24: n | J24: GREEN | K24: 0 | Q24: n | R24: GREEN | S24: 0
I25: n | J25: GREEN | K25: 0 | Q25: n | R25: GREEN | S25: 0
I26: n | J26: GREEN | K26: 0 | Q26: n | R26: GREEN | S26: 0
I27: n | J27: GREEN | K27: 0 | Q27: n | R27: GREEN | S27: 0

Sheet Risk Summary Table
A1: University of Aberdeen: Strategic Risk Register (SRR)
B2: Risk Areas | C2: Count of Risks
C3: Green | D3: Yellow | E3: Amber | F3: Red | G3: Total | H3: % of Total
A4: =ROW()-4 -> 0 | C4: =IFERROR(COUNTIFS(INDIRECT("'"&LEFT($B4,31)&"'!$S$4:$S$27"),"<4",INDIRECT("'"&LEFT($B4,31)&"'!$S$4:$S$27"),">0"),0) -> 0 | D4: =IFERROR(COUNTIFS(INDIRECT("'"&LEFT($B4,31)&"'!$S$4:$S$27"),"<7",INDIRECT("'"&LEFT($B4,31)&"'!$S$4:$S$27"),">3"),0) -> 0 | E4: =IFERROR(COUNTIFS(INDIRECT("'"&LEFT($B4,31)&"'!$S$4:$S$27"),"<10",INDIRECT("'"&LEFT($B4,31)&"'!$S$4:$S$27"),">6"),0) -> 0 | F4: =IFERROR(COUNTIFS(INDIRECT("'"&LEFT($B4,31)&"'!$S$4:$S$27"),"<17",INDIRECT("'"&LEFT($B4,31)&"'!$S$4:$S$27"),">9"),0) -> 0
A5: =ROW()-4 -> 1 | B5: =LEFT('Financial Sustainability'!D1,31) -> Financial Sustainability | C5: =IFERROR(COUNTIFS(INDIRECT("'"&LEFT($B5,31)&"'!$S$4:$S$27"),"<4",INDIRECT("'"&LEFT($B5,31)&"'!$S$4:$S$27"),">0"),0) -> 0 | D5: =IFERROR(COUNTIFS(INDIRECT("'"&LEFT($B5,31)&"'!$S$4:$S$27"),"<7",INDIRECT("'"&LEFT($B5,31)&"'!$S$4:$S$27"),">3"),0) -> 9 | E5: =IFERROR(COUNTIFS(INDIRECT("'"&LEFT($B5,31)&"'!$S$4:$S$27"),"<10",INDIRECT("'"&LEFT($B5,31)&"'!$S$4:$S$27"),">6"),0) -> 6 | F5: =IFERROR(COUNTIFS(INDIRECT("'"&LEFT($B5,31)&"'!$S$4:$S$27"),"<17",INDIRECT("'"&LEFT($B5,31)&"'!$S$4:$S$27"),">9"),0) -> 0 | G5: =SUM(C5:F5) -> 15 | H5: =G5/G20 -> 0.1239669421
A6: =ROW()-4 -> 2 | B6: =LEFT('Estates and Facilities'!D1,31) -> Estates and Facilities | C6: =IFERROR(COUNTIFS(INDIRECT("'"&LEFT($B6,31)&"'!$S$4:$S$27"),"<4",INDIRECT("'"&LEFT($B6,31)&"'!$S$4:$S$27"),">0"),0) -> 0 | D6: =IFERROR(COUNTIFS(INDIRECT("'"&LEFT($B6,31)&"'!$S$4:$S$27"),"<7",INDIRECT("'"&LEFT($B6,31)&"'!$S$4:$S$27"),">3"),0) -> 1 | E6: =IFERROR(COUNTIFS(INDIRECT("'"&LEFT($B6,31)&"'!$S$4:$S$27"),"<10",INDIRECT("'"&LEFT($B6,31)&"'!$S$4:$S$27"),">6"),0) -> 5 | F6: =IFERROR(COUNTIFS(INDIRECT("'"&LEFT($B6,31)&"'!$S$4:$S$27"),"<17",INDIRECT("'"&LEFT($B6,31)&"'!$S$4:$S$27"),">9"),0) -> 2 | G6: 8 | H6: =G6/G20 -> 0.06611570248
A7: 3 | B7: =LEFT('Student Recruitment '!D1,31) -> Student Recruitment | C7: 2 | D7: 8 | E7: 5 | F7: 2 | G7: 17 | H7: =G7/G20 -> 0.1404958678
A8: 4 | B8: =LEFT('Education (UG and PGT)'!D1,31) -> Education (UG and PGT) | C8: 1 | D8: 9 | E8: 0 | F8: 0 | G8: 10 | H8: =G8/G20 -> 0.0826446281
A9: 5 | B9: =LEFT('Research and PGR'!D1,31) -> Research and PGR | C9: 0 | D9: 9 | E9: 0 | F9: 0 | G9: 9 | H9: =G9/G20 -> 0.07438016529
A10: 6 | B10: =LEFT('Digital & Information Services'!D1,31) -> Digital & Information Services | C10: 1 | D10: 6 | E10: 3 | F10: 1 | G10: 11 | H10: =G10/G20 -> 0.09090909091
A11: 7 | B11: =LEFT(People!D1,31) -> People | C11: 1 | D11: 6 | E11: 0 | F11: 0 | G11: 7 | H11: =G11/G20 -> 0.05785123967
A12: 8 | B12: =LEFT('Health, Safety, Wellbeing & Res'!D1,31) -> Health, Safety, Wellbeing & Res | C12: 0 | D12: =IFERROR(COUNTIFS(INDIRECT("'"&LEFT($B12,31)&"'!$S$4:$S$27"),"<7",INDIRECT("'"&LEFT($B12,31)&"'!$S$4:$S$27"),">3"),0) -> 5 | E12: 0 | F12: 0 | G12: 5 | H12: =G12/G20 -> 0.04132231405
A13: 9 | B13: =LEFT('International Partnerships'!D1,31) -> International Partnerships | C13: 2 | D13: 3 | E13: 2 | F13: 3 | G13: 10 | H13: =G13/G20 -> 0.0826446281
A14: 10 | B14: =LEFT(Reputation!D1,31) -> Reputation | C14: 3 | D14: 5 | E14: 2 | F14: 0 | G14: 10 | H14: =G14/G20 -> 0.0826446281
A15: 11 | B15: =LEFT('External Environment'!D1,31) -> External Environment | C15: 0 | D15: 2 | E15: 1 | F15: 1 | G15: 4 | H15: =G15/G20 -> 0.03305785124
A16: 12 | B16: =LEFT('Environmental Sustainability'!D1,31) -> Environmental Sustainability | C16: 0 | D16: 4 | E16: 1 | F16: 1 | G16: 6 | H16: =G16/G20 -> 0.04958677686
A17: 13 | B17: =LEFT('Leadership and Governance'!D1,31) -> Leadership and Governance | C17: 0 | D17: 3 | E17: 2 | F17: 0 | G17: 5 | H17: =G17/G20 -> 0.04132231405
A18: 14 | B18: =LEFT('AUSA and Other Third Parties'!D1,31) -> AUSA and Other Third Parties | C18: 0 | D18: 2 | E18: 2 | F18: 0 | G18: 4 | H18: =G18/G20 -> 0.03305785124
A20: =COUNTA(RiskTable[[#All],[Column1]]) -> 14 | B20: Total | C20: =SUM(C5:C18) -> 10 | D20: =SUM(D5:D19) -> 72 | E20: =SUM(E5:E19) -> 29 | F20: =SUM(F5:F18) -> 10 | G20: =SUM(C20:F20) -> 121
B21: % of Total | C21: =C20/G20 -> 0.0826446281 | D21: =D20/G20 -> 0.5950413223 | E21: =E20/G20 -> 0.2396694215 | F21: =F20/G20 -> 0.0826446281 | G21: =SUM(C21:F21) -> 1

Sheet Scoring Matrix
D4: Impact
D5: Low (1) | E5: Moderate (2) | F5: High (3) | G5: Critical (4) | R5: Avoid
B6: Likelihood | C6: Highly Likely (4) | D6: 4 | E6: 8 | F6: 12 | G6: 16 | R6: Treat
C7: Likely (3) | D7: 3 | E7: 6 | F7: 9 | G7: 12 | R7: Tolerate
C8: Feasible (2) | D8: 2 | E8: 4 | F8: 6 | G8: 8 | R8: Transfer
C9: Unlikely (1) | D9: 1 | E9: 2 | F9: 3 | G9: 4

Sheet Abbreviations
A1: Risk Owners and Managers: abbreviations
A3: SVP | B3: Senior Vice-Principal
A4: US & COO | B4: University Secretary and Chief Operating Officer
A5: CFO | B5: Chief Financial Officer
A6: DD ER | B6: Deputy Director External Relations
A7: DoAS & OE | B7: Director of Academic Services & Online Education
A8: DoDDIS | B8: Director of Digital and Information Services
A9: DoDT & Alumni | B9: Director of Development Trust & Alumni
A10: DoEF | B10: Director of Estates and Facilities
A11: DoER | B11: Director of External Relations
A12: DoPlanning | B12: Director of Planning
A13: DoR&I | B13: Director of Research & Innovation
A14: HoSD | B14: Head of Sustainable Development
A15: VP E | B15: Vice-Principal Education
A16: VP R | B16: Vice-Principal Research
A17: VP RR | B17: Vice-Principal Regional Engagement
A18: VP GR | B18: Vice-Principal Global Recruitment

Sheet Financial Sustainability
B1: Strategic Risk Area: | D1: Financial Sustainability
B3: No. | C3: Risk (what could happen) | D3: Risk Owner | E3: Risk Manager | F3: Consequences (how would this affect the University) | G3: Likelihood | H3: Impact | I3: Unmitigated Score (gross) | L3: Response | M3: Mitigations (what is being/has been done to control the risk) | N3: Status (in place/in progress/under consideration) | O3: Likelihood | P3: Impact | Q3: Mitigated Score (net) | T3: Risk Movement
B4: 1 | C4: Failure to meet loan covenants and associated impact on going concern assurance. | D4: SVP | E4: CFO | F4: The University would need to open discussions with loan providers, the SFC and USS if covenant tests were not met. In an extreme situation, lenders may require repayment of loans which would also trigger loan break penalty costs. It is not possible to estimate these costs as each lender / stakeholder will have different responses. | G4: 3 | H4: 4 | I4: n | J4: =IF(K4<4,"GREEN",IF(AND(K4>3,K4<7),"YELLOW",IF(AND(K4>7,K4<10),"AMBER",IF(AND(K4>9,K4<17),"RED","ERROR")))) -> RED | K4: =G4*H4 -> 12 | L4: Treat | M4: Lobbying Universities Scotland (US), UUK, USS The USS members have recently accepted a short term settlement which has capped the Pension contributions by employers for the next three years, subject to the 2023 valuation, thereby reducing the largest recent risk in this area. Finance prepare modelling tests for compliance with covenants at least twice a year; If a breach was anticipated from such modelling, we would negotiate with lenders and other stakeholders (eg SFC and USS) to develop solutions. Investment Committee manages asset allocation using fund management experts to achive a balanced risk profile. | N4: In place | O4: 2 | P4: 4 | Q4: n | R4: =IF(S4<4,"GREEN",IF(AND(S4>3,S4<7),"YELLOW",IF(AND(S4>7,S4<10),"AMBER",IF(AND(S4>9,S4<17),"RED","ERROR")))) -> AMBER | S4: =O4*P4 -> 8 | T4: Down
B5: 2 | C5: Surging inflation restricts our capacity to invest. | D5: CFO | E5: CFO | F5: Inflation erodes our purchasing power and more resource is consumed with operating the estate (including energy, construction and repair materials). Market pressure pushes up recruitment and staff costs. | G5: 4 | H5: 4 | I5: n | J5: RED | K5: 16 | L5: Treat | M5: Tuition fees were increased at an early stage as inflation appeared to be increasing. National pay bargaining arrived at an affordable increase as inflation projections were rising. The three eyar plan includes apprpriate inflation adjustments on sources of income and on expenditure. | N5: In place. | O5: 2 | P5: 3 | Q5: n | R5: YELLOW | S5: 6 | T5: Down
B6: 3 | C6: Geopolitical disruptions could cut off student income from one or more markets with little warning. | D6: CFO | E6: CFO | F6: Outstanding income could be at risk of non payment (eg as happened with fees due from a government sponsoring agency in Ghana) or students are prevented from attending | G6: 2 | H6: 4 | I6: n | J6: AMBER | K6: 8 | L6: Treat | M6: the student recruitment team are careful to ensure that we have diversity across countries for overseas recruitment. | N6: In place. | O6: 2 | P6: 3 | Q6: n | R6: YELLOW | S6: 6 | T6: Down
B7: 4 | C7: Pension Schemes (USS being the largest exposure) experience significant deficits and annual cost of provison rises . | D7: SVP | E7: CFO | F7: Future pension payment unaffordable with impact on ability to invest. | G7: 4 | H7: 4 | I7: n | J7: RED | K7: 16 | L7: Treat | M7: 3 year and 10 year plans prepared with cash flow forecasts and risk analysis Monthly monitoring of actual Income and Expenditure vs budget with quick identification of any variances Setting aside contingency in budgets UASLAS latest valuation and the USS 2020 valutaions have been concluded at an acceptable cost to the University. | N7: In place | O7: 2 | P7: 4 | Q7: n | R7: AMBER | S7: 8 | T7: Down
B8: 5 | C8: The pandemic continues or new variants cause further disruption to Education & Research resulting in the depletion of cash reserves | D8: SVP | E8: CFO | F8: Inability to: Meet payroll commitments, pay suppliers, deliver teaching, complete research and invest in the 2040 commitments | G8: 2 | H8: 3 | I8: n | J8: YELLOW | K8: 6 | L8: Treat | M8: 3 year and 10 year plans prepared with cash flow forecasts and risk analysis Monthly monitoring of actual Income and Expenditure vs budget with quick identification of any variances In extremis, sale of assets, severance or additional borrowing can be carried out Holding cash reserves which are a buffer against system shocks | N8: In Place. The annual plan update will recommmend the appropriate levels of cash reserves to Court. | O8: 2 | P8: 2 | Q8: n | R8: YELLOW | S8: 4 | T8: Down
B9: 6 | C9: Land sales (Rowett) unsuccessful or value reduced and asset sales fail to raise planned capital receipts. | D9: SVP | E9: CFO | F9: Financial impact Future capital projects delayed Cash flow worsens | G9: 2 | H9: 4 | I9: n | J9: AMBER | K9: 8 | L9: Treat | M9: Reduced investment in strategic priorities Estates Committee reviewing progression of UOA land sales and monitoring developments in the construction industry. Alternative asset sales identified | N9: In Place | O9: 2 | P9: 3 | Q9: n | R9: YELLOW | S9: 6 | T9: Down
B10: 7 | C10: Brexit leads to loss of funding streams and research income | D10: SVP | E10: R&I | F10: Ability to meet minimum target to break-even and associated impact on investment | G10: 2 | H10: 3 | I10: n | J10: YELLOW | K10: 6 | L10: Treat | M10: EU fee structure agreed with scholarships in place Liaison with all areas of UoA re supply chain Research strategy to access Horizon funding | N10: In place In place In place | O10: 2 | P10: 2 | Q10: n | R10: YELLOW | S10: 4 | T10: Down
B11: 8 | C11: SFC funding declines in the medium to long term due to economic pressures | D11: SVP | E11: CFO | F11: Financial impact | G11: 4 | H11: 3 | I11: n | J11: RED | K11: 12 | L11: Treat | M11: Plan to reduce dependence on SFC funding streams through diversification to overseas student markets . Three year plan reviews demonstrate gradual reduction in SFC Income as share of total income. | N11: In place. | O11: 4 | P11: 2 | Q11: n | R11: AMBER | S11: 8 | T11: No Change
B12: 9 | C12: Failure to generate sufficient surpluses to fund strategic ambition (Inability to fund the 2040 plan & commitments). | D12: SVP | E12: CFO | F12: Strategic plan implementation is delayed or downgraded. Reputational damage & associated implications for education & research | G12: 3 | H12: 3 | I12: n | J12: AMBER | K12: 9 | L12: Treat | M12: Improve transparency in the planning process. Increase challenge to budget holders to increase net income and reduce or redeploy cost to increase its positive impact. | N12: In progress | O12: 3 | P12: 3 | Q12: n | R12: AMBER | S12: 9 | T12: Up
B13: 10 | C13: Sustained loss of research income above sector average | D13: SVP | E13: VPR | F13: Reduction in REG (b) and (c) | G13: 3 | H13: 3 | I13: n | J13: AMBER | K13: 9 | L13: Treat | M13: Greater focus on how Schools can increase Research Income with Directorate support. Increase transparency in regular performance monitoring of leading indicators for research success. | N13: In progress | O13: 2 | P13: 3 | Q13: n | R13: YELLOW | S13: 6 | T13: No Change
B14: 11 | C14: Tuition fee income drops below plans over a sustained period, particularly international students at PGT level | D14: SVP | E14: CFO | F14: Sustained loss of revenue Loss of new entrant tuition fee income Impact on School strategies and financial position Loss of income for existing students not returning | G14: 3 | H14: 3 | I14: n | J14: AMBER | K14: 9 | L14: Treat | M14: See risk 3.2 under Student Recruitment | N14: See risk 3.2 under Student Recruitment | O14: 2 | P14: 3 | Q14: n | R14: YELLOW | S14: 6 | T14: No Change
B15: 12 | C15: Business-critical projects not delivered which are required for revenue growth (planned projects or existing project milestones not met e.g. Business School, King’s College) | D15: SVP | E15: CFO | F15: Financial impact Reputational damage Student and staff experience Future student recruitment Future staff recruitment | G15: 3 | H15: 3 | I15: n | J15: AMBER | K15: 9 | L15: Treat | M15: Improved governance and project management is being put in place to manage strategic projects Business plan, timeline and risk register prepared for each project | N15: In progress In progress | O15: 2 | P15: 3 | Q15: n | R15: YELLOW | S15: 6 | T15: No Change
B16: 13 | C16: Supply chain impacted for critical goods and financial stability of suppliers reduces | D16: SVP | E16: CFO | F16: Inability to carry out research or key operational activities Potential for capital works to be significantly impacted by lack of availability of key building materials. This could impact programme and cost | G16: 3 | H16: 3 | I16: n | J16: =IF(K16<4,"GREEN",IF(AND(K16>3,K16<7),"YELLOW",IF(AND(K16>7,K16<10),"AMBER",IF(AND(K16>9,K16<17),"RED","ERROR")))) -> AMBER | K16: 9 | L16: Treat | M16: APUC reviewing supply chain identification of key framework suppliers Additional credit checks on suppliers Importing and exporting guidelines issued to community following Brexit Identify contingencies for critical supply chains e.g. building materials Provide adequate contingencies in projects for time and cost overruns Selective use of building materials where supply chain is more stable Consideration of procurement methods that reduce the above risks | N16: In progress In progress Complete In progress For future Estates Committee Project Boards to consider Project Boards to consider | O16: 3 | P16: 3 | Q16: n | R16: =IF(S16<4,"GREEN",IF(AND(S16>3,S16<7),"YELLOW",IF(AND(S16>7,S16<10),"AMBER",IF(AND(S16>9,S16<17),"RED","ERROR")))) -> AMBER | S16: =O16*P16 -> 9 | T16: No Change
B17: 14 | C17: Reduction in student halls and catering income longer term due to market forces and less physical presence on campus & resilience at Hillhead | D17: SVP | E17: US&COO/CFO | F17: Financial Impact and inability to invest to modernise or refurbish properties Reduction in campus footfall (e.g. due to homeworking). | G17: 3 | H17: 3 | I17: n | J17: =IF(K17<4,"GREEN",IF(AND(K17>3,K17<7),"YELLOW",IF(AND(K17>7,K17<10),"AMBER",IF(AND(K17>9,K17<17),"RED","ERROR")))) -> AMBER | K17: 9 | L17: Treat | M17: Adapting catering offering available on campus Market driven pricing accommodation packages Marketing strategy Review long-term budgeting and income projections Furlough staff and restructuring/redeploying staff | N17: In progress To be implemented in 2022/23 In place In progress | O17: 3 | P17: 3 | Q17: n | R17: =IF(S17<4,"GREEN",IF(AND(S17>3,S17<7),"YELLOW",IF(AND(S17>7,S17<10),"AMBER",IF(AND(S17>9,S17<17),"RED","ERROR")))) -> AMBER | S17: =O17*P17 -> 9 | T17: No Change
B18: 15 | C18: Unable to deliver major fundraising campaign | D18: SVP | E18: DoDT & Alumni | F18: Could have a signficant and adverse impact across a range of areas, including inability to deliver major capital projects, loss of financial support for research projects and for students. | G18: 3 | H18: 3 | I18: n | J18: =IF(K18<4,"GREEN",IF(AND(K18>3,K18<7),"YELLOW",IF(AND(K18>7,K18<10),"AMBER",IF(AND(K18>9,K18<17),"RED","ERROR")))) -> AMBER | K18: =G18*H18 -> 9 | L18: Treat | M18: Ensure fundraising projects and appeals are attractive to donors, develop a case for support Ensure staffing and resource meets the needs of delivering a comprehensive campaign Expansion of prospect pool and diversification of income streams (individuals, corporates, Trusts & foundations, regular giving, legacy) Ensure appropriate marketing and communications including digital and personalised communications Effective leadership and governance Funding of an ongoing programme of alumni engagement and fundraising activity | N18: In progress | O18: 2 | P18: 2 | Q18: n | R18: =IF(S18<4,"GREEN",IF(AND(S18>3,S18<7),"YELLOW",IF(AND(S18>7,S18<10),"AMBER",IF(AND(S18>9,S18<17),"RED","ERROR")))) -> YELLOW | S18: =O18*P18 -> 4 | T18: No Change

Sheet Estates and Facilities
B1: Strategic Risk Area: | D1: Estates and Facilities
B3: No. | C3: Risk (what could happen) | D3: Risk Owner | E3: Risk Manager | F3: Consequences (how would this affect the University) | G3: Likelihood | H3: Impact | I3: Unmitigated Score (gross) | L3: Response | M3: Mitigations (what is being/has been done to control the risk) | N3: Status (in place/in progress/under consideration) | O3: Likelihood | P3: Impact | Q3: Mitigated Score (net) | T3: Risk Movement
B4: 1 | C4: Failure to adequately manage future Estate development including lack of key strategic frameworks e.g. Estate Strategy, Masterplan, and effective Space Management procedures. | D4: SVP | E4: DoEF | F4: Estate unable to support institutional strategy (Aberdeen 2040). Capital project planning and development portfolio disrupted or fails to deliver on time, budget or quality. Estate poorly aligned to support onsite functions e.g. research, teaching, accommodation, greenspace, sport, events, community access. Focus on buildings rather than people and activities Reputational impact Project governance processes not followed Project finance interrupted or lost | G4: 3 | H4: 4 | I4: n | J4: =IF(K4<4,"GREEN",IF(AND(K4>3,K4<7),"YELLOW",IF(AND(K4>7,K4<10),"AMBER",IF(AND(K4>9,K4<17),"RED","ERROR")))) -> RED | K4: =G4*H4 -> 12 | L4: Treat | M4: Estates Committee oversight Consistent project management methodology and governance Effective Space Management processes Estate Strategy / Masterplan consultation and development Regular review of capital planning Design Team structure adopted and applied consistently | N4: In place In place Under consideration Under consideration In place In place | O4: 3 | P4: 4 | Q4: n | R4: =IF(S4<4,"GREEN",IF(AND(S4>3,S4<7),"YELLOW",IF(AND(S4>7,S4<10),"AMBER",IF(AND(S4>9,S4<17),"RED","ERROR")))) -> RED | S4: =O4*P4 -> 12 | T4: No Change
B5: 2 | C5: Multiple impacts of geopolitical unrest, Covid and Brexit continue to magnify problems within the supply chain (both cost and availability) | D5: SVP | E5: DoEF | F5: Small and medium suppliers fail Key suppliers lost or staffing reduced Extensive re-tendering Delays in critical parts lead to equipment offline e.g. CPH engine Large contractor failure Contractors and supply chains disrupted and/or significant price increases on key materials | G5: 3 | H5: 4 | I5: n | J5: =IF(K5<4,"GREEN",IF(AND(K5>3,K5<7),"YELLOW",IF(AND(K5>7,K5<10),"AMBER",IF(AND(K5>9,K5<17),"RED","ERROR")))) -> RED | K5: =G5*H5 -> 12 | L5: Treat | M5: Government initiatives and mitigation Most operational suppliers are via APUC and as such are large/established entities Re-tendering would normally be by APUC CHP/ District main is a ‘risk’ but UoA can operate without it (at a cost). Contract in place for maintenance with some critical part help on campus and some held by maintenance company Payments are retrospective to works Parent Company Guarantee Horizon scanning e.g. of construction trade Note: we are not in a position to mitigate or manage the geopolitical aspects of this risk. | N5: Under consideration In place In place In place In place In place In place | O5: 3 | P5: 4 | Q5: n | R5: =IF(S5<4,"GREEN",IF(AND(S5>3,S5<7),"YELLOW",IF(AND(S5>7,S5<10),"AMBER",IF(AND(S5>9,S5<17),"RED","ERROR")))) -> RED | S5: =O5*P5 -> 12 | T5: No Change
B6: 3 | C6: Failure to ensure appropriate Estate utilisation | D6: SVP | E6: DoEF | F6: Assets are under-utilised Space is poorly used Impact on delivery of services Lack of suficient, accessible storage impacts service delivery and key activities e.g. exams, sport, engagement etc. User satisfaction Reputational Consequences of increased home working | G6: 3 | H6: 4 | I6: n | J6: RED | K6: 12 | L6: Treat | M6: Effective Space Management processes Introduction (and ongoing analysis of impacts) of Homeworking Policy Estate Strategy / Masterplan consultation and development Space benchmarking data reviewed | N6: Under consideration In progress Under consideration In progress | O6: 3 | P6: 3 | Q6: n | R6: AMBER | S6: 9 | T6: No Change
B7: 4 | C7: Deterioration in material condition and/or functional obsolescence of the estate (including teaching, research and support functions) | D7: SVP | E7: DoEF | F7: Inability to deliver core activity Health & Safety risk Reputational damage Repeated failures in key buildings Some buildings in poor state of repair and/or inoperable | G7: 3 | H7: 4 | I7: n | J7: RED | K7: 12 | L7: Treat | M7: 10-year cash flow plan Estates Committee management, with consideration given to research, teaching and support facilities Regular review of capital spend Regular review of maintenance spend and programme Regular review of relative performance against sector IRV metrics Ongoing programme of refurbishment and upgrade works Condition surveys to be undertaken | N7: In place In place In place In place In place In progress In progress | O7: 3 | P7: 3 | Q7: n | R7: AMBER | S7: 9 | T7: No Change
B8: 5 | C8: Business continuity systems fail to identify potential risks to assets or to ensure appropriate operational resilience of assets, systems or utilities See also Environmental Sustainability Risks | D8: SVP | E8: DoEF | F8: Reputational impact Significant cost implications (regardless of insurance position) Disruption to aspects of campus activity e.g. teaching, research professional support Loss of an asset / assets resulting in significant business continuity problems e.g. due to fire, flood Loss of key systems e.g. K2, door entry Loss of utilities | G8: 3 | H8: 4 | I8: n | J8: RED | K8: 12 | L8: Treat | M8: Business continuity processes Key business continuity risks identified as part of Business Continuity Plan Regular maintenance and servicing of key mitigation systems e.g. fire suppression Appropriate insurance in place Health & Safety practices e.g. lab safety measures Development of appropriate investment programme for critical systems, assets & utilities Maintenance and development schedules for critical infrastructure e.g. CHP Long-term plans for replacement of key infrastructure e.g. CHP, District Heat Network Project Board to review campus heating options | N8: In place In progress In place In place In place In progress In progress In progress In place | O8: 3 | P8: 3 | Q8: n | R8: AMBER | S8: 9 | T8: No Change
B9: 6 | C9: Failure to manage energy consumption and carbon management including lack of structural investment required to drive down emissions baseline leads to uncontrolled energy costs. See also Environmental Sustanability Risks | D9: SVP / US & COO | E9: DoEF | F9: Inability to manage utilities budgets Multiplier effect of cost of carbon Reputational damage Reduces capacity for investment to drive down emissions and costs COVID mitigations e.g. enhanced fresh-air cooling, exacerbate challenge Global energy price rises magnify other impacts Energy security issues affected by ongoing war in Ukraine | G9: 4 | H9: 3 | I9: n | J9: RED | K9: 12 | L9: Treat | M9: Carbon Management Plan Net-Zero Strategy Energy efficiency embedded in projects Consideration of micro-renewables Consideration of networked solutions e.g. local heat network Consideration of alternative fuels Controls measures including Monitoring & Targeting Advance purchasing through sector procurement routes Budgetary impacts of volatile global energy markets being monitored Project Board reviewing campus heating options | N9: In place In progress In progress In progress In progress In progress In place In place In place In place | O9: 3 | P9: 3 | Q9: n | R9: AMBER | S9: 9 | T9: No Change
B10: 7 | C10: Failure to achieve targeted income from commercial and residential activities See also Financial Sustainability Risks | D10: US & COO | E10: DoEF | F10: Financial impact Risk to subsidy of other business activity Reduced student numbers impact on residential and catering income Impact on third party and other site support e.g. shop, bus service Changes in legislation governing student tenancies gives ability to leave at short notice and/or University offers rent rebates (both COVID related) Recovery delayed by ongoing Covid restrictions, with reduced footfall/income and limiting scope to mitigate impact Limited/reduced commercial activities undermining revenue generating opportunities | G10: 3 | H10: 4 | I10: n | J10: RED | K10: 12 | L10: Treat | M10: Scenarios have been prepared under which financial impacts are budgeted Operating costs reviewed Working with other HE / FE providers to generate new accommodation business e.g. SRUC, NESCOL Extensive marketing activity and working with student recruitment to opimise offer e.g. virtual open days with student recruitment, incentives for students staying over summer etc Rolling programme of accommodation upgrades Extensive on-site support for students compared to private sector Plan to recruit to a Business Development Exec post to generate new income Weekly monitoring of transaction levels and income against resource to deliver activity | N10: In progress In progress In progress In progress In place In place In progress In place | O10: 2 | P10: 4 | Q10: n | R10: AMBER | S10: 8 | T10: No Change
B11: TEMP | C11: Impact of prolonged pandemic mitigation measures, notably ventilation / air purification on capacity to return to 'normal' teaching capacity. Note: inclusion of a stand alone 'pandemic' risk following discussion at Estates Committee in February 2022. Intended to reflect immediate concerns around ventilation and limitations this may place on a return to 'normal', as well as longer-term issues related to further pandemics or any resurgence of COVID-19. | D11: SVP | E11: DoEF | F11: Concern that, despite societal relaxation of Covid-19 restrictions, ventilation requirements for universities may restrict capacity to extend in-person teaching Short-term impacts (prior to September 2022) but also risk of longer term impacts if ventilation requirements become more permanent Costs associated with installation of mechanical ventilation Increased utilities costs associated with heating ventilated spaces Impact on student experience Reputational damage Possible impact on Scottish FHE as RUK teaching returns to normal Resourcing impact due to self-isolation for those who cannot work from home | G11: 3 | H11: 3 | I11: n | J11: AMBER | K11: 9 | L11: Treat | M11: Campus Planning Group continues to meet and respond to discuss national guidance. Institutional Health & Safety colleagues reviewing ventilation guidance. Ventilation solutions being idetified and implemented. | N11: In place In place In progress | O11: 2 | P11: 2 | Q11: n | R11: YELLOW | S11: 4 | T11: New Risk
I12: n | J12: GREEN | K12: 0 | Q12: n | R12: GREEN | S12: 0
I13: n | J13: GREEN | K13: 0 | Q13: n | R13: GREEN | S13: 0
I14: n | J14: GREEN | K14: 0 | Q14: n | R14: GREEN | S14: 0
I15: n | J15: GREEN | K15: 0 | Q15: n | R15: GREEN | S15: 0
I16: n | J16: GREEN | K16: 0 | Q16: n | R16: GREEN | S16: 0
I17: n | J17: GREEN | K17: 0 | Q17: n | R17: GREEN | S17: 0
I18: n | J18: GREEN | K18: 0 | Q18: n | R18: GREEN | S18: 0
I19: n | J19: GREEN | K19: 0 | Q19: n | R19: GREEN | S19: 0

Sheet Student Recruitment
B1: Strategic Risk Area: | D1: Student Recruitment | G1: (UG, PGT, PGR)
B3: No. | C3: Risk (what could happen) | D3: Risk Owner | E3: Risk Manager | F3: Consequences (how would this affect the University) | G3: Likelihood | H3: Impact | I3: Unmitigated Score (gross) | L3: Response | M3: Mitigations (what is being/has been done to control the risk) | N3: Status (in place/in progress/under consideration) | O3: Likelihood | P3: Impact | Q3: Mitigated Score (net) | T3: Risk Movement
B4: 1 | C4: Staffing capacity does not keep pace with increased enquiry and application volumes and/or changing market expectations, leading to delays in applications processing and responses to prospective student enquiries | D4: VP GR | E4: DD ER | F4: Applicant expectations not met resulting in a poor prospective student experience. Loss of new entrant international and home tuition fee income Impact on staff workload and resulting wellbeing | G4: 4 | H4: 4 | I4: n | J4: =IF(K4<4,"GREEN",IF(AND(K4>3,K4<7),"YELLOW",IF(AND(K4>7,K4<10),"AMBER",IF(AND(K4>9,K4<17),"RED","ERROR")))) -> RED | K4: =G4*H4 -> 16 | L4: Treat | M4: Review staffing requirements to match applicant volumes Admissions statistics regularly monitored to identify and address areas of lag and flex resources accordingly Staff from other areas drafted in to support Admissions function during peak pressure period Enquiry statistics monitored to identify and address areas of lag Other Directorate staff trained and moved into enquiry support as and when required during peak pressure periods Continuously seek for opportunities to enhance processes through continual monitoring of workload pressures and seeking feedback from staff for improvement Implement new admissions system to increase the efficiency of prcoessing and applicant experience Explore means of augmenting capacity using a thrid party provider(s) | N4: In place In place In progress In place In place n place In progress Under consideration | O4: 3 | P4: 4 | Q4: n | R4: =IF(S4<4,"GREEN",IF(AND(S4>3,S4<7),"YELLOW",IF(AND(S4>7,S4<10),"AMBER",IF(AND(S4>9,S4<17),"RED","ERROR")))) -> RED | S4: =O4*P4 -> 12 | T4: Up
B5: 2 | C5: Postgraduate research student recruitment levels continue to be out of line with competitor benchmark group | D5: VP GR | E5: Dean for Postgraduate Research | F5: Adverse impact on research capacity Adverse impact on the research culture and environment and resulting student experiences Impact on PGR metrics used to drive SFC research funding Continued loss of market share which is challenging to rebuild Impact on gross tuition fee income | G5: 4 | H5: 4 | I5: n | J5: =IF(K5<4,"GREEN",IF(AND(K5>3,K5<7),"YELLOW",IF(AND(K5>7,K5<10),"AMBER",IF(AND(K5>9,K5<17),"RED","ERROR")))) -> RED | K5: =G5*H5 -> 16 | M5: Establishment of sector benchmarks to inform intake targets and allow performance to be monitored. Implementation of enhancements to PGR selection and admissions processes. Enhancement of staff research profiles and promotion of specific research topics on web pages Enhancement to PGR marketing campaigns and applicant conversion activity. | N5: In place In progress In progress In progress | O5: 3 | P5: 4 | Q5: n | R5: =IF(S5<4,"GREEN",IF(AND(S5>3,S5<7),"YELLOW",IF(AND(S5>7,S5<10),"AMBER",IF(AND(S5>9,S5<17),"RED","ERROR")))) -> RED | S5: =O5*P5 -> 12 | T5: Up
B6: 3 | C6: UK Postgraduate taught recruitment levels continue to be out of line with competitor set. | D6: VP GR | E6: Dean of Portfolio Development & Programme Engagement | F6: Negative impact on fee income Potential adverse impact on the student experience of international students seeking a UK university experience Loss of contribution to economic regeneration and upskilling Adverse impact on the balance of UG to PG numbers in the population Continued loss of market share which is challenging to rebuild. Potential loss of throughput to PGR study in those disciplines where this is the recognised progression path. | G6: 4 | H6: 3 | I6: n | J6: =IF(K6<4,"GREEN",IF(AND(K6>3,K6<7),"YELLOW",IF(AND(K6>7,K6<10),"AMBER",IF(AND(K6>9,K6<17),"RED","ERROR")))) -> RED | K6: =G6*H6 -> 12 | L6: Treat | M6: Establishment of sector benchmarks to inform intake targets and allow performance to be monitored. Launch of a new UK PGT campaign informed by latest market insights. New campaign to promote PGT study to existing undergraduates Promotion of scholarships targeted at UK PGT including alumni discount, and community discount | N6: Under consideration In progress In place In place | O6: 3 | P6: 3 | Q6: n | R6: =IF(S6<4,"GREEN",IF(AND(S6>3,S6<7),"YELLOW",IF(AND(S6>7,S6<10),"AMBER",IF(AND(S6>9,S6<17),"RED","ERROR")))) -> AMBER | S6: =O6*P6 -> 9 | T6: No Change
B7: 4 | C7: Failure to meet growth targets for international PGT and international UG student numbers | D7: VP GR | E7: Dean for International Stakeholder Engagement | F7: Loss of tuition fee income and income shortfalls against budgets Adverse impact on the net fee income per student FTE Reduced ability to sustain other areas of activity that do not recover their full cost. In respect of PGT, adverse impact on the balance of UG to PG numbers in the population Loss of market share which is challenging to rebuild Over-reliance on a small number of key markets | G7: 3 | H7: 4 | I7: n | J7: =IF(K7<4,"GREEN",IF(AND(K7>3,K7<7),"YELLOW",IF(AND(K7>7,K7<10),"AMBER",IF(AND(K7>9,K7<17),"RED","ERROR")))) -> RED | K7: =G7*H7 -> 12 | L7: Treat | M7: Use of market intelligence to drive awareness of market positional and applicant motivations. Brand review project, which will include messaging appropriate to each market in support of student recruitment. Targeted incentives and scholarships in response to the price-sensitivity of the individual market. Implementation of plan to enhance conversion rates in key markets. Ensuring brand promotion fully optimises ranking credentials in rank-sensitive markets. Task and finish groups established to review strategic approaches for international recruitment and market diversification Development of new programmes and employability focus to meet market demand Continue to deliver programme of in-person and virtual recruitment events for prospective students. targeted at key audiences and attending recruitment fairs domestically and internationally to support lead generation and to nurture potential applicants | N7: In place In progress In place In place In place In progress In place | O7: 3 | P7: 3 | Q7: n | R7: =IF(S7<4,"GREEN",IF(AND(S7>3,S7<7),"YELLOW",IF(AND(S7>7,S7<10),"AMBER",IF(AND(S7>9,S7<17),"RED","ERROR")))) -> AMBER | S7: =O7*P7 -> 9 | T7: New Risk
B8: 5 | C8: Failure to meet growth targets for RUK UG student numbers | D8: VP GR | E8: DD ER | F8: Loss of tuition fee income and income shortfalls against budgets Adverse impact on the net fee income per student FTE Reduced ability to sustain other areas of activity that do not recover their full cost. Loss of market share which is challenging to rebuild | G8: 3 | H8: 3 | I8: n | J8: AMBER | K8: 9 | M8: Use of market intelligence to drive awareness of market positional and applicant motivations. Brand review project, which will include messaging appropriate to each market in support of student recruitment. Targeted incentives and scholarships Implementation of plan to enhance conversion rates Continue to deliver programme of in-person and virtual recruitment events for prospective students. For RUK UG planning our approach to Clearing and Confirmation, overseen by the Clearing and Confirmation TFG, to support growth in this area Maintain awareness of UK-wide discussions in relation to post qualification admissions for the undergraduate market, and the potential impact this could have on undergraduate recruitment. | N8: In place In progress In place In place In place In progress In place | O8: 3 | P8: 2 | Q8: n | R8: YELLOW | S8: 6 | T8: New Risk
B9: 6 | C9: Over-reliance on key markets increases exposure to international student recruitment risk. | D9: VP GR | E9: Head of International Recruitment | F9: Exposure to the impact of geopolitical tensions, conflict, economic downturn and other global events. Loss of tuition fee income and income shortfalls against budgets Reduced ability to sustain other areas of activity which do not recover their full-costs Inability to respond to changing prioritisations of rank sensitive and price sensitive markets. Exposure to changes in market sentiment or affordability in individual markets. Adverse impact on the net fee income per student FTE Reduced ability to sustain other areas of activity that do not recover their full cost. Adverse impact on the balance of UG to PG numbers in the population Loss of market share which is challenging to rebuild Over-reliance on a small number of key markets | G9: 4 | H9: 4 | I9: n | J9: RED | K9: 16 | M9: Use of market intelligence to drive awareness of market positional and applicant motivations. Targeted incentives and scholarships in response to the price-sensitivity of the individual market. Implementation of plan to enhance conversion rates in key markets. Ensuring brand promotion fully optimises ranking credentials in rank-sensitive markets. Task and finish groups established to review strategic approaches for international recruitment and market diversification Development of new programmes and employability focus to meet market demand Enhance in-country presence in key markets Continue to deliver programme of in-person and virtual recruitment events for prospective students. | N9: In place In place In place In place In progress In place In place | O9: 3 | P9: 3 | Q9: n | R9: AMBER | S9: 9 | T9: New Risk
B10: 7 | C10: Changes in the external environment obstructs/interrupts recruitment of international students (geopolitics, international travel, changes to immigration policy global health) | D10: VP GR | E10: Dean for International Stakeholder Engagement | F10: Loss of tuition fee income and income shortfalls against budgets Reduced ability to sustain other areas of activity which do not recover their full-costs Adverse impact on the net fee income per student FTE Reduced ability to sustain other areas of activity that do not recover their full cost. Adverse impact on the balance of UG to PG numbers in the population Loss of market share which is challenging to rebuild Over-reliance on a small number of key markets Loss of market share which is challenging to rebuild | G10: 3 | H10: 4 | I10: n | J10: RED | K10: 12 | L10: Treat | M10: Provide clear messaging to applicants and key stakeholders Ensure flexibility in enrolment dates to accommodate delays and obstruction. Offer January entry points to allow applicants to defer to a later entry point in the same academic year. Review and reiterate our commitments to supporting incoming students as part of ongoing engagement and communication activity Coordination of activity across teams to ensure use of external intelligence and survey data to inform approaches to conversion Programme of digital engagement and events across a range of platforms and providers to provide offer-holder support and guidance | N10: In place Under consideration In place In place In place In place In place | O10: 3 | P10: 3 | Q10: n | R10: AMBER | S10: 9 | T10: No Change
B11: 8 | C11: Failure to satisfy SFC student number controls in relation to the home fees population | D11: VP GR | E11: DD ER | F11: Financial penalties for over-recruiting or under-recruiting against SFC thresholds for the student population Specifically, a financial penalty for over or under recruitment against SFC population thresholds for Medicine, Dentistry, Initial Teacher Education Loss of tuition fee income in the event of over-recruitment in the form of the SFC financial penalty resulting in a drop of fee income per FTE. Clawback of grant by SFS in the event of under-recruitment against funded student places. Loss of market share which is challenging to rebuild | G11: 3 | H11: 3 | I11: n | J11: =IF(K11<4,"GREEN",IF(AND(K11>3,K11<7),"YELLOW",IF(AND(K11>7,K11<10),"AMBER",IF(AND(K11>9,K11<17),"RED","ERROR")))) -> AMBER | K11: =G11*H11 -> 9 | L11: Treat | M11: Development of a portfolio of programmes appropriate to the market. Brand re-positioning project, which includes a focus on support for student recruitment. Continued engagement with prospective students at events (virtual and face-to-face) both on-campus and in school. Implementation of a comprehensive conversion plan Provision of materials for applicants and their influencers (guidance teachers, parents/guardians). Planning our approach to Clearing and Confirmation, overseen by the Clearing and Confirmation TFG, to support growth in this area | N11: In place In progress In place In place In place In place | O11: 2 | P11: 2 | Q11: n | R11: =IF(S11<4,"GREEN",IF(AND(S11>3,S11<7),"YELLOW",IF(AND(S11>7,S11<10),"AMBER",IF(AND(S11>9,S11<17),"RED","ERROR")))) -> YELLOW | S11: =O11*P11 -> 4 | T11: No Change
B12: 9 | C12: Failure to achieve student numbers agreed with SFC in support of Scottish Government priorities | D12: VP GR | E12: Dean for Widening Access, Articulation and Outreach | F12: SFC Outcome & Impact Framework targets relating to access, articulation and STEM are not met impacting impact on relationship with SFC and possible SFC sanctions and financial penalties. Reputational damage as a result of perceived failure to offer widening access opportunities. Inability to meet Aberdeen 2040 commitments on Inclusivity. | G12: 4 | H12: 3 | I12: n | J12: RED | K12: 12 | L12: Treat | M12: Establishment of a comprehensive framework of metrics for widening access. Working with SFC and Commissioner for Fair Access to ensure that we can implement metrics appropriate to our regional context. Implement a transparent contextualised admissions policy. Continue to review entry qualifications to ensure these are attractive to prospective students but do not impact on overall standards Targeted incentives and scholarships, such as widening access scholarships in partnership with the Development Trust, and free accommodation offering for SIMD20 students Maintaining existing FE College partnerships and seeking opportunities for new articulation pathways. Continued engagement with target school pupils at events (virtual and face-to-face) both on-campus and in school. Provision of materials for prospective widening access applicants and their influencers (guidance teachers, parents/guardians). Planning our approach to Clearing and Confirmation, overseen by the Clearing and Confirmation TFG, to support growth in this area New undergraduate STEM campaign | N12: In place In progress In place In place In place In place In place In progress In place | O12: 3 | P12: 2 | Q12: n | R12: YELLOW | S12: 6 | T12: No Change
B13: 10 | C13: Failure to mitigate a potential reduction in student numbers and loss of fee income as a result of the UK's withdrawal from the EU. | D13: VP GR | E13: Dean for International Stakeholder Engagement | F13: Financial impact if EU numbers are not substituted by Scottish-domiciled numbers. Loss of diversity in our population. A reduced international student experience for home students. Adverse impact on performance measures/league tables which use the proportion of non-UK students as an internationalisation metric. | G13: 4 | H13: 4 | I13: n | J13: RED | K13: 16 | L13: Treat | M13: Growing Scottish-domiciled student entrants to compensate for the loss of home fees EU numbers. Develop the recruitment of international fee-paying students from the EU Based on market insights, establish a priority list of EU countries for the implementation of a brand awareness and conversion campaign. Implement and Monitor the effectiveness of the EU scholarship scheme for UG, PGT and PGR, | N13: In place In place In progress In progress | O13: 2 | P13: 2 | Q13: n | R13: YELLOW | S13: 4 | T13: Down
B14: 11 | C14: Continuing impact of Coronavirus pandemic for international student recruitment | D14: VP GR | E14: Head of International Recruitment | F14: Potential disruption to recruitment from markets impacted by renewed pandemic outbreaks across all study levels and fee categories (and in future years) Continuing obstruction to in-country logistical arrangements required to enable student registration (e.g. Visa processing, English Language testing, prior qualification verification; travel restrictions) Continuing impact on mobility of students from China in particular. Loss of brand awareness amongst future students as result of reduced activity in-country. Reduced confidence in international study mobility amongst prospective students and influencers (families, agents, sponsors) | G14: 4 | H14: 4 | I14: n | J14: RED | K14: 16 | L14: Treat | M14: Maintain marketing campaigns and generate leads in country wherever possible. Implement a programme of digital engagement and events across a range of platforms and providers to provide offer-holder support and guidance Continue programme of (a) internally delivered University-led virtual events and (b) external partner-delivered recruitment fairs where required to replace in-country/ in-person recruitment events both in the UK and internationally Continuing diversification of markets to reduce reliance on those markets suffering longer-term pandemic consequences. Preparations for potential resurgences when pandemic conditions and mobility restrictions ease. | N14: In place In place In place In place Under consideration | O14: 2 | P14: 3 | Q14: n | R14: YELLOW | S14: 6 | T14: Down
B15: 12 | C15: Potential growth opportunities for online student recruitment are not identified and/or fully realised. | D15: VP GR | E15: DoAS & OE | F15: growth opportunities are not realised Recruitment diversification opportunities are not realised. Market share remains below potential. Restricted ability to address upskilling and economic regeneration needs. | G15: 3 | H15: 3 | I15: n | J15: =IF(K15<4,"GREEN",IF(AND(K15>3,K15<7),"YELLOW",IF(AND(K15>7,K15<10),"AMBER",IF(AND(K15>9,K15<17),"RED","ERROR")))) -> AMBER | K15: =G15*H15 -> 9 | L15: Treat | M15: Develop clear strategy for developing online portfolio of courses and programmes. Enhancement to the Online Education Management System to improve the purchase of online courses and the learner experience Review opportunities to work with third party providers to help grow online student numbers Develop in-house capacity to further broaden the On-Demand platform provision of short courses and programmes. Respond proactively to upskilling/reskilling opportunities and identify potential for growth | N15: In progress In place In place In progress | O15: 2 | P15: 3 | Q15: n | R15: =IF(S15<4,"GREEN",IF(AND(S15>3,S15<7),"YELLOW",IF(AND(S15>7,S15<10),"AMBER",IF(AND(S15>9,S15<17),"RED","ERROR")))) -> YELLOW | S15: =O15*P15 -> 6 | T15: Up
B16: 13 | C16: Reform of pre-university qualifications affecting school and College sectors and potential reform to university admissions | D16: VP GR | E16: DD ER | F16: Disruption to undergraduate recruitment Limited time to implement changes to accommodate any reforms to the UCAS application process impacting on workload and the applicant experience. Consequences for entry tariff arising from SQA-driven changes to Scottish School examinations. Possible impact on our competitiveness in market and resulting fee income | G16: 3 | H16: 3 | I16: n | J16: AMBER | K16: 9 | L16: Treat | M16: Continue to keep ongoing reform proposals under review and lobby against change which would damage recruitment. Monitor political debates and sentiment to assess likelihood of significant reform to admissions and pre-entry qualifications. S | N16: In place In place | O16: 1 | P16: 2 | Q16: n | R16: GREEN | S16: 2 | T16: Down
B17: 14 | C17: Changing patterns in demand for academic disciplines or modes of study | D17: VP GR | E17: DD ER | F17: Instability in student numbers by discipline Uncertainty around financial viability of areas. Misalignment of our current and planned provision with applicant preferences and student demand. | G17: 3 | H17: 4 | I17: n | J17: RED | K17: 12 | L17: Treat | M17: Use of market intelligence to understand applicant demand and inform portfolio planning. Active diversification of provision across study modes and disciplines to respond to changing patterns of demand. Engagement with academic Schools to ensure that new product development is aligned to market opportunities and identified demand. Work with academic school and Directorate of Planning to ensure School and University programme portfolios are optimised. Put in place processes to deliver proactive management of the University's portfolio of programmes of study. Process of setting discipline-based targets which is mapped to budget planning round and informed by market insights. | N17: In progress In place In place In progress Under consideration In progress | O17: 2 | P17: 3 | Q17: n | R17: YELLOW | S17: 6 | T17: Up
B18: 15 | C18: Inability to provide timely and informed student recruitment projections | D18: VP GR | E18: DD ER | F18: Inability to project workload and plan staffing requirements Impact on projections for planning an budget purposes meaning that academic areas are not equipped of resources to support increased student numbers. Potential negative impact on the student experience. Potential negative impact on future student recruitment. | G18: 3 | H18: 3 | I18: n | J18: AMBER | K18: 9 | M18: Monitoring and regular updating of conversion rates of application/offer/acceptance to registered student Implementation of a methodology to develop range-based projections. Cross working between External Relations (new entrants); Planning (student population planning); and Finance (budgetary impact) to enhance robustness of projections available. | N18: In place In place In progress | O18: 2 | P18: 2 | Q18: n | R18: YELLOW | S18: 4 | T18: New Risk
B19: 16 | C19: Increading diversity of student intake creates processing challenges and consequent compliance risks | D19: VP GR | E19: DD ER | F19: Risk of issuing CAS to non-credible applicants resulting in a risk to our UKVI Licence We are unable to provide applicants with a full and timely response on action required by them Insufficient market knowledge to scrutinise and understand complex documentation | G19: 4 | H19: 4 | I19: n | J19: RED | K19: 16 | M19: Ensure staff receive appropriate training Ensure staff capacity in place (risk 1) Agree and transparently set out clear deadlines for University and applicant decision-making Monitor UKVI visa refusal rates and other market behaviours Close working between University's Admissions and Immigration Compliance Teams | N19: In place In progress In place In place In place | O19: 3 | P19: 3 | Q19: n | R19: AMBER | S19: 9 | T19: New Risk
B20: 17 | C20: Programme promotion materials and web matter are inaccurate and ineffective | D20: VP GR | E20: Head of Marketing & Brand Development | F20: Failure to attract interest from, and engage with, prospective students and applicants Negative impact on conversion rates from prospective, to registered, student Risk of complaints from prospective students Risk of failure of compliance with Consumer Markets Authority (CMA ) guidance | G20: 3 | H20: 3 | I20: n | J20: AMBER | K20: 9 | M20: Timely updating of promotional materials Clearly articulate information about programmes on offer; tuition fees; entry requirements; and deadlines in a timely manner Ensure programme information is centrally managed and co-ordinated through the Marketing & Brand Development Team. Ensure programme information is updated at least annually | N20: In place In place In place In place | O20: 1 | P20: 2 | Q20: n | R20: GREEN | S20: 2 | T20: New Risk
I21: n | J21: GREEN | K21: 0 | Q21: n | R21: GREEN | S21: 0
I22: n | J22: GREEN | K22: 0 | Q22: n | R22: GREEN | S22: 0
I23: n | J23: GREEN | K23: 0 | Q23: n | R23: GREEN | S23: 0
I24: n | J24: GREEN | K24: 0 | Q24: n | R24: GREEN | S24: 0
I25: n | J25: GREEN | K25: 0 | Q25: n | R25: GREEN | S25: 0
I26: n | J26: GREEN | K26: 0 | Q26: n | R26: GREEN | S26: 0
I27: n | J27: GREEN | K27: 0 | Q27: n | R27: GREEN | S27: 0
I28: n | J28: GREEN | K28: 0 | Q28: n | R28: GREEN | S28: 0

Sheet Education (UG and PGT)
B1: Strategic Risk Area: | D1: Education (UG and PGT)
B3: No. | C3: Risk (what could happen) | D3: Risk Owner | E3: Risk Manager | F3: Consequences (how would this affect the University) | G3: Likelihood | H3: Impact | I3: Unmitigated Score (gross) | L3: Response | M3: Mitigations (what is being/has been done to control the risk) | N3: Status (in place/in progress/under consideration) | O3: Likelihood | P3: Impact | Q3: Mitigated Score (net) | T3: Risk Movement
B4: 1 | C4: Interruption or changes to planned approach to teaching, learning and assessment due to any changes to national sector guidance related to Covid-19 and staff or student Covid-related absence (e.g. reduced on campus contact time, impact on practical teaching such as labs and performance, continuation of placement activity, student mobility etc) | D4: VP E | E4: Director of Academic Services & Online Education | F4: Student performance and progression decreases Students unable to fulfil requirements for graduation Reputational damage Drop in national and international rankings School visiting programmes impacted | G4: 3 | H4: 3 | I4: n | J4: =IF(K4<4,"GREEN",IF(AND(K4>3,K4<7),"YELLOW",IF(AND(K4>7,K4<10),"AMBER",IF(AND(K4>9,K4<17),"RED","ERROR")))) -> AMBER | K4: =G4*H4 -> 9 | L4: Treat | M4: Schools have prepared for teaching with contingency plans in place (e.g., ability to delivery online for students who cannot be on campus); Student Services continue to be available online so that there is access to these services for all students, no matter their circumstances. Alternative assessment is in place for the entire academic year (except where accreditation requirements require exams) Named contact from the Centre for Academic Development for each School – to support the development of online teaching and alternative assessments School-based and Medical / Dentistry placement situation continue to be monitored proactively; all other placement requirements continue to be monitored proactively and will be managed appropriately Hardship Fund in place to support students who require IT facilities Support and training for 'dual delivery' (i.e., delivery of teaching to students in the classroom and online at the same time) in place Access to increased online texts through the Reading Lists project and resources through the Library with additional support from the Library team provided to Schools Detailed guidance re. Erasmus opportunities and assoc. travel given to students and their individual study plans facilitated through Erasmus coordinators and central Erasmus Office | N4: In place for 2HS In Place for 2HS In place In place In place In place In progress (ongoing work) In place | O4: 2 | P4: 2 | Q4: n | R4: =IF(S4<4,"GREEN",IF(AND(S4>3,S4<7),"YELLOW",IF(AND(S4>7,S4<10),"AMBER",IF(AND(S4>9,S4<17),"RED","ERROR")))) -> YELLOW | S4: =O4*P4 -> 4 | T4: Down
B5: 2 | C5: Inadequate quality of teaching, learning and assessment in AY21/22 due to ongoing requirements for blended learning in the context of the ongoing Covid-19 pandemic, and student expectations around on campus and online learning. | D5: VP E | E5: Director of Academic Services & Online Education | F5: Student satisfaction decreases | G5: 2 | H5: 3 | I5: n | J5: =IF(K5<4,"GREEN",IF(AND(K5>3,K5<7),"YELLOW",IF(AND(K5>7,K5<10),"AMBER",IF(AND(K5>9,K5<17),"RED","ERROR")))) -> YELLOW | K5: 6 | L5: Treat | M5: Schools have pplans in place for the delivery of teaching, learning and assessment for 1HS in line with the Principles for Blended Learning and the Timetabling Principles Schools will ensure they have plans in place for the delivery of 2HS and the rest of the academic year in an appropriate timeframe School Education Committees will monitor preparations and support staff where necessary to complete the preparations (workload issues will be raised with ALMs) Arrangements for 2HS will be similar to 1HS for AY21/22 except that on campus sessions will not have an equivalent online session in the timetable, unless students have exceptionally been granted permission to study fully online (in which case those students will be offered online learning) [NB a staff communication has provided details on this] Communications wil be provided to students and staff (student communications will be agreed with AuSA) so that the community is up-to-date | N5: Complete In place for 2HS In place for 2HS In place Ongoing | O5: 2 | P5: 2 | Q5: n | R5: =IF(S5<4,"GREEN",IF(AND(S5>3,S5<7),"YELLOW",IF(AND(S5>7,S5<10),"AMBER",IF(AND(S5>9,S5<17),"RED","ERROR")))) -> YELLOW | S5: =O5*P5 -> 4 | T5: No Change
B6: 3 | C6: Assessment and feedback on assessment is not of a high quality and / or provided within the required timeframes. | D6: VP E | E6: Director of Academic Services & Online Education | F6: Impact on student performance and progression NSS Assessment and Feedback results do not improve with impact on League Table rankings | G6: 4 | H6: 3 | I6: n | J6: =IF(K6<4,"GREEN",IF(AND(K6>3,K6<7),"YELLOW",IF(AND(K6>7,K6<10),"AMBER",IF(AND(K6>9,K6<17),"RED","ERROR")))) -> RED | K6: 12 | L6: Treat | M6: Put in place an approach to monitoring the timeliness of providing student feedback at School level so that Heads of School / Directors of Education can intervene where necessary Put in place an approach that ensures that all students are provided with all information about assessment (including but not limited to: type of assessment, criteria for marking, timelines for submission and return of grades/feedback) Take forward actions at institutional level that supports Schools to improve feedback (e.g., provision of training) Take forward a pilot of the use of TESTA (Transforming the experience of students through assessment) in one or more School Identify good practice in assessment at course, discipline and / or School levels and disseminate appropriately Each School will review the NSS results at discipline level and will put in place action plans at discipline level Quality assurance processes in place to ensure appropriate assessment is in place, including liaison with external examiners Guidance in place on assessment: development of assessment, inclusivity, integrity with continued work on matters of integrity (e.g., essay mills) | N6: In place for 2HS In place for 2HS In place In progress In progress Iin place In place Ongoing | O6: 2 | P6: 3 | Q6: n | R6: =IF(S6<4,"GREEN",IF(AND(S6>3,S6<7),"YELLOW",IF(AND(S6>7,S6<10),"AMBER",IF(AND(S6>9,S6<17),"RED","ERROR")))) -> YELLOW | S6: 6 | T6: Down
B7: 4 | C7: Non-continuation of students with some student groups being more at risk of non-continuation | D7: VP E | E7: Director of Academic Services & Online Education | F7: Impact on individual students Loss of tuition fee income Impact on completion rates and League Table position Reputational impact | G7: 3 | H7: 3 | I7: n | J7: =IF(K7<4,"GREEN",IF(AND(K7>3,K7<7),"YELLOW",IF(AND(K7>7,K7<10),"AMBER",IF(AND(K7>9,K7<17),"RED","ERROR")))) -> AMBER | K7: 9 | L7: Treat | M7: Continued development of transition into university support, orientation and induction approaches to support the needs of students Analysis of non-continuation data that enables targeted initiatives to be developed as necessary at institutional, School and discipline levels Monthly review of withdrawal data to enable 'real-time' understanding of any trends or concerns Analysis of particular demographic groups to determine if there are issues associated with particular groups, and take action to address the issues Ongoing equality impact assessment of teaching, learning and assessment and take action where necessary | N7: In place for 2HS In progress In progress In progress Ongoing | O7: 2 | P7: 2 | Q7: n | R7: =IF(S7<4,"GREEN",IF(AND(S7>3,S7<7),"YELLOW",IF(AND(S7>7,S7<10),"AMBER",IF(AND(S7>9,S7<17),"RED","ERROR")))) -> YELLOW | S7: 4 | T7: No Change
B8: 5 | C8: No increase in the level of student mobility / students' opportunity to engage with an international experience | D8: VP E | E8: Director of External Relations | F8: Impact on student experience due to lack of opportunity to undertake international placements Impact on recruitment Impact on the achievement of the Aberdeen 2040 Commitment 11 | G8: 3 | H8: 3 | I8: n | J8: AMBER | K8: 9 | L8: Treat | M8: Put in place a group to take forward planning that aims to increase the number of opportunities for study abroad Take forward a pilot of COIL (Collaborative Online International Learning) that aims to enable students to have an international experience without travel Communicate the existing opportunities appropriately Continue to work with networks (e.g., Aurora, Curtin) to progress increased opportunities for student mobility Continue to work at a national level to influence the approach to the funding for study abroad | N8: In place In progress In place In place In place | O8: 2 | P8: 2 | Q8: n | R8: YELLOW | S8: 4 | T8: No Change
B9: 6 | C9: Quality assurance arrangements are not in place or not adhered to in our TNE (transnational education) partnerships in Qatar and for the Joint Institute with South China Normal University | D9: VP E QAC | E9: Director of Academic Services & Online Education | F9: Impact on the student experience Impact on our reputation Impact on our external quality assurance outcomes Impact on the process of Ministry of Education relicencing (for AFG) in relation to the QA requirements for that process | G9: 3 | H9: 3 | I9: n | J9: AMBER | K9: 9 | L9: Treat | M9: Produce a quality assurance report for each Quality Assurance Committee meeting for each partnership, identifying any risks or issues Utilise the robust committee structures that are in place to monitor and intervene as necessary Ensure that TNE partners have all necessary information and support to enable the implementation of our required quality assurance processes TFG is in place for the QA-related aspects of the relicensing process | N9: In place In place In place Complete | O9: 2 | P9: 2 | Q9: n | R9: YELLOW | S9: 4 | T9: New Risk
B10: 7 | C10: Students are unable to access work placements or go on to employment after graduation | D10: VP E EEC | E10: Head of Careers | F10: Negative impact on graduate outcomes Negative impact on our graduates Impact on the achievement of Aberdeen 2040 Commitment 12 | G10: 3 | H10: 3 | I10: n | J10: AMBER | K10: 9 | L10: Treat | M10: Analysis of graduate outcome data at School and discipline levels to identify areas that require targeted action with Schools putting in place action plans Put in place a Group to develop approaches, policy and actions that increase the opportunities for work placements (or alternatives) as part of an overall approach to support employability Work with the Development Trust to identify opportunities that will support the development of placement opportunities Upscale and widen co-curricular internship opportunities through new ABDNConnect Internship programme (Communications to include engagement with alumni) Encourage UG students to undertake appropriate PG study with the University of Aberdeen | N10: In progress In place In place In progress In place | O10: 3 | P10: 2 | Q10: n | R10: YELLOW | S10: 6 | T10: No Change
B11: 8 | C11: Inability to complete the requirements for ELIR (Enhancement-Led Institutional Review) for QAA Scotland due to resources required to take this extensive piece of work forward | D11: VP E | E11: Director of Academic Services & Online Education | F11: Negative impact on reputation Increased monitoring required by QAAS Missed opportunity to promote the good practice in teaching, learning and assessment Negative impact on our condition of grant | G11: 1 | H11: 4 | I11: n | J11: YELLOW | K11: 4 | L11: Treat | M11: Identify how resources can be allocated to enable the ELIR process to take place over 2022-2023 in a robust way. Update: 03 April 2022 - it is likely that similar arrangements will be in place for AY22/23 as the current year and therefore it is unlikely that a full-scale ELIR will be taking place in 22/23. Once confirmed this risk will be updated and / or removed. | N11: In progress | O11: 1 | P11: 2 | Q11: n | R11: GREEN | S11: 2 | T11: Down
B12: 9 | C12: Inability to complete the Aberdeen 2040 strategic work for Education relating to the following (some of this covered in sepeate risks): - Pastoral support - Monitoring, absence and engagement processes - Assessment and Feedback - Non-continuation and success - Education policy project - Enhancement-Led Institutional Review - Decolonising the Curriculum - Aberdeen 2040 Graduate Attributes and Skills - Aberdeen 2040 Delivery of Education - The International student experience - Employability and graduate outcomes | D12: VP E | E12: Director of Academic Services & Online Education and Director of People | F12: Missed opportunity to enhance Education following the learning that has emerged from blended learning and the wider student experience during Covid-19 Negative impact on the League Tables | G12: 3 | H12: 4 | I12: n | J12: RED | K12: 12 | L12: Treat | M12: Action plan for Education, with associated workstreams in place Resource implications of the extensive work addressed Consultation approach embedded as part of all of the work (our colleagues, students, wider stakeholders) Monitoring through the University Education Committee structure | N12: In progress I n progress In progress In place | O12: 2 | P12: 3 | Q12: n | R12: YELLOW | S12: 6 | T12: No Change
B13: 10 | C13: Failure to adhere to requirements of Professional & Statutory Regulatory Bodies (PSRB) leading to risk of loss of accreditation | D13: VP E | E13: Director of Academic Services & Online Education | F13: Reputation damage Negative impact on student employability Risk of litigation | G13: 2 | H13: 4 | I13: n | J13: AMBER | K13: 8 | L13: Treat | M13: Ensure close oversight by Schools of PSRB requirements QAC oversight of PSRB accreditation reports | N13: In place In place | O13: 1 | P13: 4 | Q13: n | R13: YELLOW | S13: 4 | T13: No Change
I14: n | J14: GREEN | K14: 0 | Q14: n | R14: GREEN | S14: 0
I15: n | J15: GREEN | K15: 0 | Q15: n | R15: GREEN | S15: 0
I16: n | J16: GREEN | K16: 0 | Q16: n | R16: GREEN | S16: 0
I17: n | J17: GREEN | K17: 0 | Q17: n | R17: GREEN | S17: 0
I18: n | J18: GREEN | K18: 0 | Q18: n | R18: GREEN | S18: 0
I19: n | J19: GREEN | K19: 0 | Q19: n | R19: GREEN | S19: 0

Sheet Research and PGR
B1: Strategic Risk Area: | D1: Research and PGR
B3: No. | C3: Risk (what could happen) | D3: Risk Owner | E3: Risk Manager | F3: Consequences (how would this affect the University) | G3: Likelihood | H3: Impact | I3: Unmitigated Score (gross) | L3: Response | M3: Mitigations (what is being/has been done to control the risk) | N3: Status (in place/in progress/under consideration) | O3: Likelihood | P3: Impact | Q3: Mitigated Score (net) | T3: Risk Movement
B4: 1 | C4: Failure to grow research income (see also Financial Sustainability, risk No. 4 (Sustained loss of research income above sector average)) | D4: VP R | E4: D of R&I | F4: Reduced ICC income; Reduced ability to invest in research; Loss of track record impacts on ability to attract funding; Adverse impact on league tables; Reduction of REG year on year Impact on REF metrics | G4: 3 | H4: 3 | I4: n | J4: =IF(K4<4,"GREEN",IF(AND(K4>3,K4<7),"YELLOW",IF(AND(K4>7,K4<10),"AMBER",IF(AND(K4>9,K4<17),"RED","ERROR")))) -> AMBER | K4: =G4*H4 -> 9 | L4: Treat | M4: - Alignment of institutional research themes in Aberdeen 2040 to national funding priorities and the UN Sustainable Development Goals; - The team of Directors of interdisciplinary challenges, recruited to focus on excellent research and interdisciplinary education, supported by the Business Development Team/Grants Academy and the Impact and Knowledge Exchange Team in Research & Innovation; - New V-P for Regional Engagement and Regional Recovery, working with the research Deans and R&I for the delivery regional recovery agenda. - Creation of a dedicated space to support the work within the interdisciplinary themes underway; - Provision of pump-priming opportunities as well as matched/co-funding for strategically important projects; - Increased and dedicated support of very high value bids through Research & Innovation; - Further improvements to pre- and post-award management system - Provision of benchmarking research income information to schools to aid income planning | N4: In place In place In place In progress In place In place In progress In place | O4: 2 | P4: 3 | Q4: n | R4: =IF(S4<4,"GREEN",IF(AND(S4>3,S4<7),"YELLOW",IF(AND(S4>7,S4<10),"AMBER",IF(AND(S4>9,S4<17),"RED","ERROR")))) -> YELLOW | S4: =O4*P4 -> 6 | T4: No Change
B5: 2 | C5: Reduced/insufficient quality of research | D5: VP R | E5: D of R&I | F5: Decline in citations, number and percentage of highly cited papers; Reduced ability to attract funding; Reduced ability to publish in competitive journals or with competitive publishers; Adverse impact on league tables Reputational damage | G5: 4 | H5: 3 | I5: n | J5: =IF(K5<4,"GREEN",IF(AND(K5>3,K5<7),"YELLOW",IF(AND(K5>7,K5<10),"AMBER",IF(AND(K5>9,K5<17),"RED","ERROR")))) -> RED | K5: 12 | L5: Treat | M5: - Continued peer support through interdisciplinary themes, Grants Academy and School processes; - Aberdeen 2040 promotes challenge based research through IDR themes, engagement with research users and partnership working to enable project proposals likely to attract competitive funding and to yield high quality outputs; - Staff development/training programmes for staff and PGRs available through the Researcher Development Unit; - In-School processes include mentorship and engagement/staff development through discipline and professional associations; - Membership of UK Research Integrity Office and UK Reproducibility Network commits us to working to nationally recognised standards of research integrity and reproducibility; - Implementation of the San Francisco Declaration on Research Assessment - regular assessments of research quality outside of national assessment exercises; - Increased and dedicated support for very high value bids likely to produce very high quality outputs - monitoring of rates of outputs and consideration of workload adjustment to academics if required | N5: In place In progress In place In place In place In progress In progress Under consideration | O5: 3 | P5: 2 | Q5: n | R5: =IF(S5<4,"GREEN",IF(AND(S5>3,S5<7),"YELLOW",IF(AND(S5>7,S5<10),"AMBER",IF(AND(S5>9,S5<17),"RED","ERROR")))) -> YELLOW | S5: =O5*P5 -> 6 | T5: No Change
B6: 3 | C6: Reduced/insufficient KE activity; failure to grow our portfolio of enterprise, entrepreneurship and spin outs | D6: VP R and VP RERR | E6: D of R&I | F6: Reduced income from KE Failure to generate impact to report to funders or REF Inability to contribute to recovery effort and attract funds that enable generation of further impact/KE activities Inability to develop a portfolio of new spin out and start up opportunities for the innovation hubs in the region Reputational damage | G6: 3 | H6: 3 | I6: n | J6: =IF(K6<4,"GREEN",IF(AND(K6>3,K6<7),"YELLOW",IF(AND(K6>7,K6<10),"AMBER",IF(AND(K6>9,K6<17),"RED","ERROR")))) -> AMBER | K6: 9 | L6: Treat | M6: - Work with regional partners on industry needs; - Promote breadth of university assistance to industry recovery; - Promote collaboration beyond academia and partnership working through interdisciplinary themes; - Encourage work with non-academic partners on industry solutions - Develop new strategy for entrepreneurship, programmes for generating new spin outs/start ups and an enhanced physical location - Review incentives and promotion opportunities relating to KE - Engage with regional partners on strategic bids eg Freeport bid and working with NESA partners | N6: In place In place In place In place In progress In progress In progress | O6: 3 | P6: 2 | Q6: n | R6: YELLOW | S6: 6 | T6: No Change
B7: 4 | C7: Failure to attract PGR students; failure to retain, progress PGRs, low rates of completion; failure to provide a positive PGR experience (see also Student Recruitment risk register, risk No. 1 (Failure to meet Recruitment Targets) and risk No. 2 (International Students)) | D7: VP R and VP GR | E7: GN | F7: Reduction of research capacity Reduction of annual SFC PGR grant Impact on REF metrics Impact on PGR income where students fail to complete or fail to complete on time (non-compliance with UKRI 4-year rule) Reduced ability to recruit PGR students Reduced ability attract studentships and DTP funds and international applications | G7: 3 | H7: 4 | I7: n | J7: RED | K7: 12 | L7: Treat | M7: - Implement findings of the PGR Task and Finish Group -Increased student support via PGR School; - Specific guidance for supervisors and PGR School co-ordinators around engagement; - Provision of mandatory training for PGRs and supervisors, core and generic training online; - Promotion of 'Engage the World' of staff profile changes including PGR recruitment button and update of study here pages; - Continued engagement with International funders/partnerships; - Ensure DTP applications are promoted and supported by institutional commitment required to match/co-fund; | N7: In progress In place In place In place In place In place In place | O7: 3 | P7: 2 | Q7: n | R7: YELLOW | S7: 6 | T7: No Change
B8: 5 | C8: Failure to attract and retain high quality T&R /R staff (see also: Staffing risk register, risk No. 1 (Recruitment) and risk No. 6 (Retention)) | D8: VP R | E8: D of R&I and Director of People | F8: Reduced research capacity Reduced ability to attract external funding and PGR candidates Reduced ability to engage with industry/KE agenda Reduced visibility with adverse impacts on student and staff recruitment Longer term reduction of REG | G8: 3 | H8: 4 | I8: n | J8: RED | K8: 12 | L8: Treat | M8: - Implement findings from Research Culture Task and Finish Group - Ensure rolling programme of facilities review to main high quality research facilities - Close engagement with and support to researchers; - Dedicated support to commercialisation and enterprise; - Monitoring of research metrics by protected characteristic to ensure inclusive approach to support; - Ensure high visibility of and celebrate research success through Comms, PERU, web content and social media | N8: In progress In place In place In place In place In place | O8: 2 | P8: 3 | Q8: n | R8: YELLOW | S8: 6 | T8: No Change
B9: 7 | C9: Failure to maintain high standards of ethics and governance; failure to comply with regulatory and statutory requirements | D9: VP R | E9: D of R&I | F9: Clawback or financial penalities Statutory obligations not met Regulatory or statutory penalties Reputational damage Funder(s) refusing to accept applications from individual researchers Funder(s) refusing to accept applications from institution Loss of research data (linked to Cybersecurity risk) Loss of IP through espionage or unauthorised/harmful use of research outcomes | G9: 2 | H9: 3 | I9: n | J9: YELLOW | K9: 6 | L9: Treat | M9: - Regular review and update of Research Governance Handbook to ensure compliance of processes and policies with funder requirements and integrity standards; - Mandatory online training introduced (for research integrity, fundamental ethics and research data management); - Mandatory in depth ethics training for ethics applicants and reviewers; - Continued membership and engagement with UK Research Integrity Office and UK Reproducibility Network; - Establishment of an institutional ethics group (as sub-group of the University Research Committee) to discuss and share good practice: - Implmentation of a new University wide ethics system (Worktribe) to ensure consistency of ethics processes - Continued close partnership with NHS on clinical studies involving human participants; - Continued close scrutiny of Home Office regulated research involving animals to ensure compliance; - Develop guidance and process for registration of projects/partnertships under the National Security Investment Act 2021 (retrospective to 2020) | N9: In place In place In place In place In place In progress In place In place | O9: 2 | P9: 2 | Q9: n | R9: YELLOW | S9: 4 | T9: No Change
B10: 7 | C10: Failure to plan effectively for the next national Research Assessment Framework | D10: VP R | E10: D of R&I | F10: Poor performance in the assessment period Further loss of REG funding Impact of league tables Reputational damage Recruitment and retention of staff and PGR students Increased number of outputs/impact case studies marked 'unclassified' impacting negatively on quality profiles; Increased effort for REF2028; policy and potential investment decisions taken too late in the assessment cycle to impact positively on the outcome of the next exercise | G10: 3 | H10: 3 | I10: n | J10: AMBER | K10: 9 | L10: Treat | M10: - Implementation of findings of REF lessons learnt exercise - Engagement through a variety of formal and informal networks, V-P Research and REF manager participating in round table discussion as part of Research England's FRAP project, ongoing engagement through RKEC and Scottish REF Managers Group - Increase resilience and capacity for key roles - Improve processes and support for generating and capturing impact - Improve research data management and reporting (grant activity, income, citations and benchmarking) | N10: In progress In place In progress In progress In place | O10: 2 | P10: 2 | Q10: n | R10: YELLOW | S10: 4 | T10: No Change
B11: 8 | C11: Further significant disruption due to COVID or other pandemic/calamity | D11: VP R | E11: D of R&I and Dean for Interdisciplinary Research and Impact | F11: Loss of research income Failure to progress students Inability to obtain funding Inability to complete ongoing research or publish | G11: 3 | H11: 3 | I11: n | J11: AMBER | K11: 9 | L11: Treat | M11: - Early logging of any potential issues with funders, included potential for costed extensions; - Early identification of external and internal funding to assist in mitigating impact and delivery of original research projects and monitoring of impact and funding requirements during potential further restrictions; - PGR campaigns and scholarship schemes to mitigate potential negative impact on PGR recruitment; enhanced online and at distance offering; flexible start dates | N11: In place/ready to be deployed In place/ready to be deployed In place/ready to be deployed | O11: 2 | P11: 2 | Q11: n | R11: YELLOW | S11: 4 | T11: No Change
B12: 9 | C12: Failure to comply with funders' t's and c's | D12: VP R | E12: D of R&I | F12: Clawback or financial penalities; Funder(s) refusing to accept applications from individual researchers; Funder(s) refusing to accept applications from institution; Depending on nature of breach, regulatory or statutory consequences; Reputational damage | G12: 3 | H12: 3 | I12: n | J12: =IF(K12<4,"GREEN",IF(AND(K12>3,K12<7),"YELLOW",IF(AND(K12>7,K12<10),"AMBER",IF(AND(K12>9,K12<17),"RED","ERROR")))) -> AMBER | K12: =G12*H12 -> 9 | L12: Treat | M12: - Monitoring of funders' conditions and policy requirements (including funders' penalty policies); - Early engagement with funders and third parties with a view to mitigate potential claims where appropriate; - Ensure communication with partners via PIs and Research & Innovation; - Support compliance with relevant training for researchers and PGRs | N12: In place In place In place In place | O12: 2 | P12: 2 | Q12: n | R12: =IF(S12<4,"GREEN",IF(AND(S12>3,S12<7),"YELLOW",IF(AND(S12>7,S12<10),"AMBER",IF(AND(S12>9,S12<17),"RED","ERROR")))) -> YELLOW | S12: =O12*P12 -> 4 | T12: No Change
I13: n | J13: GREEN | K13: 0 | L13: Treat | Q13: n | R13: GREEN | S13: 0
I14: n | J14: GREEN | K14: 0 | L14: Treat | Q14: n | R14: GREEN | S14: 0
I15: n | J15: GREEN | K15: 0 | L15: Treat | Q15: n | R15: GREEN | S15: 0
I16: n | J16: GREEN | K16: 0 | L16: Treat | Q16: n | R16: GREEN | S16: 0
I17: n | J17: GREEN | K17: 0 | L17: Treat | Q17: n | R17: GREEN | S17: 0

Sheet Digital & Information Services
B1: Strategic Risk Area: | D1: Digital & Information Services
B3: No. | C3: Risk (what could happen) | D3: Risk Owner | E3: Risk Manager | F3: Consequences | G3: Likelihood | H3: Impact | I3: Unmitigated Score (gross) | L3: Response | M3: Mitigations (what is being/has been done to control the risk) | N3: Status (in place/in progress/under consideration) | O3: Likelihood | P3: Impact | Q3: Mitigated Score (net) | T3: Risk Movement
B4: 1 | C4: A failure, absence or compromise of Information Governance procedures or IT Security controls results in loss, destruction or unauthorised access to data or inability to meet accountability obligations. | D4: SVP | E4: DoDIS | F4: Data security breaches Disruption to business activities Financial impact Reputational damage | G4: 4 | H4: 4 | I4: n | J4: =IF(K4<4,"GREEN",IF(AND(K4>3,K4<7),"YELLOW",IF(AND(K4>7,K4<10),"AMBER",IF(AND(K4>9,K4<17),"RED","ERROR")))) -> RED | K4: =G4*H4 -> 16 | L4: Treat | M4: Ensure significant proactive focus and staffing, including Information Security Manager and Data Protection Officer, in this area to identify and manage risk, and drive improvement. Remote monitoring of organisation by security team, including weekends where specific threat intelligence warrants (if volunteers available). Information champions group for staff / student education with meetings in the diary to highlight key developments in Information Governance/Information Security practices. MFA now rolled out across all alumni, staff and students. Microsoft 365, VDI and VPN are covered by MFA with MyHR and external account work underway. Multi-layered technical controls in place and continually assessed and improved (vulnerability management, email auto-forwarding, mobile management) to reduce risk. Review and improve security tools (SIEM, MS tools) to ensure that security and performance are optimal in the changing working environment. Installation of immutable data store to help protect data from ransomware attack. Information Governance Committee, Information Risk Working Group and Operation Security Group in place to provide policy, governance, prioritise risk mitigation activities. Adherence to Scottish Governance Action Plan and Cyber Resilience Framework Active participation in external networks and threat intelligence sharing groups and forums Regular audits, security assessments and penetration testing. Improvement of information security and data protection training and development for staff and students with the development of new mandatory training modules for staff. Procurement of Incident Response retainer to support incident response activities. | N4: In place In place In place In place In place In progress In progress In progress In progress In place In place In progress In progress | O4: 4 | P4: 3 | Q4: n | R4: =IF(S4<4,"GREEN",IF(AND(S4>3,S4<7),"YELLOW",IF(AND(S4>7,S4<10),"AMBER",IF(AND(S4>9,S4<17),"RED","ERROR")))) -> RED | S4: =O4*P4 -> 12 | T4: Upwards
B5: 2 | C5: Inability to deliver work requests and system changes due to multiple, competing high level priorities and consistently high workload levels in particular areas. Includes contributory impact of loss of subject matter experts and workload capacity due to resignations, failure to attract staff or posts on hold for a prolonged period. | D5: US & COO | E5: DoDIS | F5: Disruption to day-to-day activities Student experience Student progression Student completion Reputational impact Financial impact Regulatory Compliance Security posture degradation | G5: 4 | H5: 4 | I5: n | J5: =IF(K5<4,"GREEN",IF(AND(K5>3,K5<7),"YELLOW",IF(AND(K5>7,K5<10),"AMBER",IF(AND(K5>9,K5<17),"RED","ERROR")))) -> RED | K5: =G5*H5 -> 16 | L5: Treat | M5: D&IS prioritisation process Escalation to SMT and relevant task and finish groups Financial case submitted to DSC for 21/22 and 22 / 23 onwards setting work priorities. Priority cases for recruitment submitted to Senior Management Continue discussion at a national level regarding support pools. Utilise contractor / agency market if business critical. Ad hoc use of retention arrangements or market premiums for staff attraction. Salary and benefits review for major risk areas Consideration and definition of the Employee Value Proposition | N5: In place In place In place In place In place In place In place In progress | O5: 3 | P5: 3 | Q5: n | R5: =IF(S5<4,"GREEN",IF(AND(S5>3,S5<7),"YELLOW",IF(AND(S5>7,S5<10),"AMBER",IF(AND(S5>9,S5<17),"RED","ERROR")))) -> AMBER | S5: =O5*P5 -> 9 | T5: No change
B6: 3 | C6: Inability to meet teaching requests / requirements for digital and non-digital content (books / journals / other online information resources, items in museums and special collections). Related Inability to provide content to support research and risk of non-compliance of research outputs. | D6: US & COO | E6: DoDIS | F6: Reduced Student experience Student progression Reputational impact Financial impact Withdrawal of research funding Reduction in grant income Increased costs for access to content | G6: 3 | H6: 3 | I6: n | J6: =IF(K6<4,"GREEN",IF(AND(K6>3,K6<7),"YELLOW",IF(AND(K6>7,K6<10),"AMBER",IF(AND(K6>9,K6<17),"RED","ERROR")))) -> AMBER | K6: =G6*H6 -> 9 | L6: Treat | M6: Close and early liaison with relevant academic and professional service groups Participate in national strategic networks and planning conversations, especially Jisc Collections, Research Libraries UK and SCURL, covering both research publishing and eTextbooks Funding agreed with Development Trust for targeted digital content Ensure students in remote locations can access required resources Further develop Reading List service functionality and scale of resource provision Engage with the national transition to open access, including major publisher negotiations and sector approaches to rights retention Development of multi-year scholarly communications plan Resources deployed for DORA implementation Identify solutions to address UKRI compliance risk including revised University Open Access policy Review of research information systems relating to research output management and dissemination Reprioritise resources towards increasing support for research publishing and impact. | N6: In place In place In place In progress In place In place In place In progress In progress Under consideration Under Consideration | O6: 2 | P6: 2 | Q6: n | R6: =IF(S6<4,"GREEN",IF(AND(S6>3,S6<7),"YELLOW",IF(AND(S6>7,S6<10),"AMBER",IF(AND(S6>9,S6<17),"RED","ERROR")))) -> YELLOW | S6: =O6*P6 -> 4 | T6: No change
B7: 4 | C7: Constrained service improvement, service reduction due to inability to afford escalating revenue costs of provision. Applies to software license, maintenance and replacement of digital systems.and applications. | D7: SVP/US & COO | E7: DoDIS | F7: Financial impact Teaching failure and effect on student journey Administration service levels Research capacity Cyber / Governance risk | G7: 3 | H7: 4 | I7: n | J7: =IF(K7<4,"GREEN",IF(AND(K7>3,K7<7),"YELLOW",IF(AND(K7>7,K7<10),"AMBER",IF(AND(K7>9,K7<17),"RED","ERROR")))) -> RED | K7: 12 | L7: Treat | M7: Consider reduced license levels in a planned manner Close focus on license levels required. Contract cost reduction where possible Stimulate and engage at national level in negotiations to reduce prices Bring briefing and proposals on negotiations and University consultation to Digital Strategy Committee Close liaison with Finance Directorate and University Senior Management. Development of appropriate financial plans in keeping with planning cycles. Programme of digitisation of items in musuems and special collections includign colcultation with academic staff | N7: In place In place In progress In place In place In place In place | O7: 3 | P7: 3 | Q7: n | R7: =IF(S7<4,"GREEN",IF(AND(S7>3,S7<7),"YELLOW",IF(AND(S7>7,S7<10),"AMBER",IF(AND(S7>9,S7<17),"RED","ERROR")))) -> AMBER | S7: =O7*P7 -> 9 | T7: No change
B8: 5 | C8: Failure of digital delivery platforms due to fault, capacity or other issue. Widespread impact on Teaching, Research and administration. | D8: SVP/US & COO | E8: DoDIS | F8: Disruption to business activities Reputational damage Financial impact Reduced student experience / progression Reduced grant income / research outputs | G8: 3 | H8: 3 | I8: n | J8: =IF(K8<4,"GREEN",IF(AND(K8>3,K8<7),"YELLOW",IF(AND(K8>7,K8<10),"AMBER",IF(AND(K8>9,K8<17),"RED","ERROR")))) -> AMBER | K8: 9 | L8: Treat | M8: Utilise expanded, multiple platforms where appropriate and affordable. Purchases alternative solutions when requirement is identified. RFC protocol in place to reduce internal errors when maintenance and change actions are undertaken Accessibility / captioning guidance in place VDI/ VPN system have undergone significant compute and licence expansion Monitoring of system performance with alerts in place via Nagios Lobbying of suppliers through local and national contacts/ bodies Financial case for relevant technology provision submitted via DSC for service recovery / augmentation Re-configure University systems to minimise traffic impact. This is being monitored on an ongoing basis. System expansion considered on a case by case basis, e.g. VDI, VPN, Microsoft licenses (CRM, Security / PowerBI etc) Use of expandable technology stacks (VM, SAN store, cloud) and ability to escalate to senior management / DSC for funds to augment. Capacity Management a focus of operational management Generator backup at Data Centres and split site redundant infrastructure for a number of core systems. | N8: In place In place In place In place In place In place In place In place In progress In place In place In place In place | O8: 2 | P8: 3 | Q8: n | R8: =IF(S8<4,"GREEN",IF(AND(S8>3,S8<7),"YELLOW",IF(AND(S8>7,S8<10),"AMBER",IF(AND(S8>9,S8<17),"RED","ERROR")))) -> YELLOW | S8: 6 | T8: No change
M9: Consulting with key research leaders and groups to better understand demand More effective translation of demand into either universal or bespoke services Greater engagement at pre-award to offer innovative solutions and build in cost and expertise Greater emphasis on tracking technologies offered to researchers in other universities Implementing more on-demand/JIT solutions | N9: In place In progress In progress In progress In progress
B10: 6 | C10: Campus internet performance degradation due to capacity issues or failure. | D10: TS | E10: DoDISS | F10: Disruption to business activities Reputational damage Financial impact | G10: 3 | H10: 4 | I10: n | J10: RED | K10: 12 | L10: Treat | M10: Re-configure University systems to minimise traffic coming on to campus. This is being monitored on an ongoing basis but may require further significant work for Home Working Policy implementation. Have dual resilient links for major buildings and Aberdeen inter-campus traffice . Remove on campus dependencies for major services (email / Teams) for emergency situations. Direct students to hardship fund to provide funding for local internet where relevant Deploy “data dongle” to staff for internet connectivity where appropriate Generator backup at Data Centres and split site redundant infrastructure for a number of core systems. . | N10: In progress In place In progress In place In place In place | O10: 2 | P10: 2 | Q10: n | R10: YELLOW | S10: 4 | T10: No change
B11: 7 | C11: Loss of institutional competitiveness through under-investment in digital initiatives and content, due to prolonged under-investment or poor strategic technology choices. This includes the risk of failing to appropriately manage and deliver Application Transformation initiatives. | D11: SVP/US & COO | E11: DoDISS | F11: Disruption to business activities Financial impact Reputational impact Reduced student experience Reduced research income | G11: 4 | H11: 3 | I11: n | J11: RED | K11: 12 | L11: Treat | M11: Ensure that ROI perspective is taken on project decisions. Work that may support income generation and new ways of working to retain / attract students given full consideration. Directorate and Digital funding bids completed for required duration (multi-year) In consultation with senior colleagues and school plans, development of long term project / technology roadmaps to inform financial planning. Production of well researched and detailed business cases in close collaboration with academic and professional services colleagues Close liaison with academic, professional service colleagues including DSC, forums and specific meetings Project Methodology, PID & scope documentation to ensure appropriate consultations Use of external knowledge bases such as Gartner for market / technology research to inform decision making | N11: In place In place In progress. In place In place In place In place | O11: 3 | P11: 3 | Q11: n | R11: AMBER | S11: 9 | T11: Upwards
B12: 8 | C12: Technology replacement programme or capacity management stops for extended period due to supply / resource issues leading to failures and poor back office and user technology. This includes facilitation of institutional home working policy (HWP). | D12: SVP/US & COO | E12: DoDISS | F12: Impact on longer term business continuity Financial impact Reputational impact Disruption to business activities | G12: 3 | H12: 3 | I12: n | J12: AMBER | K12: =G12*H12 -> 9 | L12: Treat | M12: Ensure appropriate warranty packages are in place to maximise lifespan Utilisation of break / fix model and limited budget in the medium term. Utilise unspent budget allocations to ensure sustainability of operation Develop desktop replacement strategy to move to mobile provision Financial case for HWP technology provision submitted to DSC. Submission of orders in timely and bulked manner to try and ensure supply Lobbying of suppliers at local and national level | N12: In place In place In place In place In place In place In place | O12: 1 | P12: 2 | Q12: n | R12: GREEN | S12: 2 | T12: No change
B13: 9 | C13: Inappropriate service provision to staff / students with particular & specific requirements (location / disability / accessibility / digital divide) | D13: US & COO | E13: DoDIS | F13: Student Experience undermined Financial impact Reputational impact | G13: 3 | H13: 3 | I13: n | J13: AMBER | K13: 9 | L13: Treat | M13: Utilise technical solutions to overcome issues of location and access to infrmation. Increased use of VDI (purchase of expanded computer/licence complete) and implementation of scalable and secure VPN for all remote/ home working Consider purchase of equipment and / or internet for students. SFC monies allocated to hardship fund for specific student technology requirements. Captioning service for lecture capture Digital Accessibility Workgroup continues to champion increased adherence to WCAG regs and specific disability areas, e.g. dyslexia Use of internal and external hardship funds, equipment and content to help reduce digital poverty Digital Accessibility Policy in place with clear roles & responsibilities for management and relevant staff roles. Review of study spaces to include accessibility and inclusion. | N13: In place In place In place In place In place In progress Under consideration | O13: 2 | P13: 2 | Q13: n | R13: YELLOW | S13: 4 | T13: No change
B14: 10 | C14: Loss of digital content (corporate/research/heritage) due to lack of digital archiving and preservation service and systems | D14: US & COO | E14: DoDIS | F14: Regulatory claims Inability to comply with research funder policies Reputational damage Irretrievable loss of unique materials | G14: 3 | H14: 3 | I14: n | J14: AMBER | K14: 9 | L14: Treat | M14: External review to inform plans Acquisition of digital curation and preservation systems via DSC bid Development of service and staffing Identify and implement archiving solution introducing resilience to existing infrastructure through cloud provision | N14: In progress In progress Under consideration In progress | O14: 2 | P14: 2 | Q14: n | R14: YELLOW | S14: 4 | T14: No change
B15: 11 | C15: Failure to adequately manage the collections and special collections. | D15: US & COO | E15: DoDIS | F15: Irretrievable loss or damage to unique materials Failure to retain museum Accreditation and Recognition status Loss of SFC Museums Galleries and Collections grant Reputational Impact | G15: 4 | H15: 4 | I15: n | J15: =IF(K15<4,"GREEN",IF(AND(K15>3,K15<7),"YELLOW",IF(AND(K15>7,K15<10),"AMBER",IF(AND(K15>9,K15<17),"RED","ERROR")))) -> RED | K15: 16 | L15: Treat | M15: Ensure building maintenance, and security systems and protocols, including regular checking of onsite and offsite stores, effective disaster prevention procedures and business continuity plans, and risk assessments for relevant activities Fulfil expectations of Accreditation and Recognition schemes, including approval of policies and governance arranegments by Museums Galleries Scotland and anual reporting Fulfil deliverables set by SFC, including annual reporting; engage with SFC through University Museums in Scotland group Ensure robust research and a transparent and consultative apprpoach underpins activity, particuarly when addressing issues such as decolonisation, slavery and repatriation; adherence to Museums Association Code of Ethics; close liaison with External Affairs | N15: In place In place In place In place | O15: 2 | P15: 2 | Q15: n | R15: YELLOW | S15: 4 | T15: Upwards (SFC reviewing grant scheme)

Sheet People
B1: Strategic Risk Area: | D1: People
B3: No. | C3: Risk (what could happen) | D3: Risk Owner | E3: Risk Manager | F3: Consequences (how would this affect the University) | G3: Likelihood | H3: Impact | I3: Unmitigated Score (gross) | L3: Response | M3: Mitigations (what is being/has been done to control the risk) | N3: Status (in place/in progress/under consideration) | O3: Likelihood | P3: Impact | Q3: Mitigated Score (net) | T3: Risk Movement
B4: 1 | C4: Inabiltiy to recruit staff, including as a result of an economic skills shortage in specialist ares, required to meet strategic priorities in Aberdeen 2040 and deliver a positive staff and student experience | D4: DoPeople | E4: Head of HR Business Partnering | F4: Staff shortages Critical shortage in some disciplines and impact on UG and PGT teaching Impact on professional services delivery/ support Impact on REF Resentment, following the need to review staffing complement and shift staff to business critical areas Inability to delivery in speciality areas as a consequence of economic environment and skills shortages. | G4: 4 | H4: 3 | I4: n | J4: =IF(K4<4,"GREEN",IF(AND(K4>3,K4<7),"YELLOW",IF(AND(K4>7,K4<10),"AMBER",IF(AND(K4>9,K4<17),"RED","ERROR")))) -> RED | K4: =G4*H4 -> 12 | L4: Treat | M4: Review of R&S Policy including Relocation Package to make more attractive Post of Senior HR Partner (Resourcing) to provide specialist recruitment support including for senior and hard to recruit to posts Development of proposals for market supplements and other incentives to attract staff where recruitment difficulties Review of reward practices (including promotion and career pathways, senior staff salary banding) Development of homeworking policy and hybrid working guidance. Development of annual programme learning & development activity to support internal upskilling. | N4: In progress Complete In progress In progress Complete In progress | O4: 3 | P4: 2 | Q4: n | R4: =IF(S4<4,"GREEN",IF(AND(S4>3,S4<7),"YELLOW",IF(AND(S4>7,S4<10),"AMBER",IF(AND(S4>9,S4<17),"RED","ERROR")))) -> YELLOW | S4: =O4*P4 -> 6 | T4: No Change
B5: 2 | C5: Inability to retain the high quality staff required to lead, develop and implement key strategic and operational priorities | D5: DoPeople | E5: Head of HR Business Partnering | F5: Brain drain Staff shortages leading to excessive workloads for those remaining Drop in quality of education or research standards among academics, or of outputs and support in Directorates. Reputational damage. | G5: 3 | H5: 3 | I5: n | J5: =IF(K5<4,"GREEN",IF(AND(K5>3,K5<7),"YELLOW",IF(AND(K5>7,K5<10),"AMBER",IF(AND(K5>9,K5<17),"RED","ERROR")))) -> AMBER | K5: 9 | L5: Treat | M5: Staff Survey Review of Probation Procedures Comprehensive programme of staff development & leadership opportunities. Review of Contribution procedures and other Recognition practices Addition of home working/hybrid working to range of flexible working procedures. | N5: Complete To be undertaken In place In progress Complete | O5: 2 | P5: 2 | Q5: n | R5: =IF(S5<4,"GREEN",IF(AND(S5>3,S5<7),"YELLOW",IF(AND(S5>7,S5<10),"AMBER",IF(AND(S5>9,S5<17),"RED","ERROR")))) -> YELLOW | S5: =O5*P5 -> 4 | T5: No Change
B6: 3 | C6: Overseas working - risk of staff working overseas and not notifying the University. Risk of fines due to tax etc implications | D6: DoPeople | E6: Head of HR Business Partnering | F6: Reputational damage Financial impact | G6: 3 | H6: 2 | I6: n | J6: =IF(K6<4,"GREEN",IF(AND(K6>3,K6<7),"YELLOW",IF(AND(K6>7,K6<10),"AMBER",IF(AND(K6>9,K6<17),"RED","ERROR")))) -> YELLOW | K6: 6 | L6: Treat | M6: Guidance in place for staff and managers on the employment of staff overseas Global Mobility Policy to be implemented Working with external specialist to ensure country specific guidance and advice is in place as required | N6: In place In progress In place | O6: 2 | P6: 2 | Q6: n | R6: =IF(S6<4,"GREEN",IF(AND(S6>3,S6<7),"YELLOW",IF(AND(S6>7,S6<10),"AMBER",IF(AND(S6>9,S6<17),"RED","ERROR")))) -> YELLOW | S6: =O6*P6 -> 4 | T6: No Change
B7: 4 | C7: Failure in adhering to legal compliance, especially in relation to immigration | D7: DD | E7: Head of HR Business Partnering | F7: Reputational damage Inability to recruit international staff as a consequence of loss of UKVI license if legal breach occurs and license revoked. | G7: 3 | H7: 3 | I7: n | J7: =IF(K7<4,"GREEN",IF(AND(K7>3,K7<7),"YELLOW",IF(AND(K7>7,K7<10),"AMBER",IF(AND(K7>9,K7<17),"RED","ERROR")))) -> AMBER | K7: 9 | L7: Treat | M7: Continued subscription to UKVI premium service and continuing to seek their advice on a case by case basis where appropriate Ensuring guidance issued by the UKVI is communicated and cascaded through HR and relevant University teams. | N7: In place In place | O7: 2 | P7: 2 | Q7: n | R7: =IF(S7<4,"GREEN",IF(AND(S7>3,S7<7),"YELLOW",IF(AND(S7>7,S7<10),"AMBER",IF(AND(S7>9,S7<17),"RED","ERROR")))) -> YELLOW | S7: =O7*P7 -> 4 | T7: No Change
B8: 5 | C8: Deterioration in Employee Relations including potential of industrial dispute. | D8: DoPeople | E8: DoPeople / CFO | F8: Adverse impact on student experience Detrimental impact on University's reputation Adverse impact on industrial relations/ partnership working with the Campus Trade Unions | G8: 3 | H8: 3 | I8: n | J8: =IF(K8<4,"GREEN",IF(AND(K8>3,K8<7),"YELLOW",IF(AND(K8>7,K8<10),"AMBER",IF(AND(K8>9,K8<17),"RED","ERROR")))) -> AMBER | K8: 9 | M8: Meetings of the Industrial Action Working Group to manage the impact Regular meetings between management and the Campus Trade Unions Guidance and FAQ for staff and managers Reward Consulation and Negotiation Group established | N8: In progress In progress In progress In progress | O8: 2 | P8: 2 | Q8: n | R8: =IF(S8<4,"GREEN",IF(AND(S8>3,S8<7),"YELLOW",IF(AND(S8>7,S8<10),"AMBER",IF(AND(S8>9,S8<17),"RED","ERROR")))) -> YELLOW | S8: =O8*P8 -> 4 | T8: No Change
B9: 6 | C9: Transition to hybrid working arrangements and return to campus impacting on staff performance/outputs, staff morale, staff engagement and student experience. | D9: DoPeople | E9: Head of HR Business Partnering/ Head of Organis. Developm. HR | F9: Loss of output Projects stall Staff satisfaction drops Increased stress for staff concerned about not being able to deliver all aspects of role Impact on service delivery and student experience | G9: 3 | H9: 3 | I9: n | J9: AMBER | K9: 9 | L9: Treat | M9: Staff survey undertaken and action plans being taken forward. Planning for next survey commencing Workload Planning Review Group Ongoing consideration of adjusting priorities/delaying activity as appropriate Flexibility offered to staff (method and extent informed by survey results, sectoral and government advice A range of wellbeing support available (Wellbeing Toolkit) Strategies to manage user expectations (staff, students, community) and/or to adapt (or buy in) services to suit availability of staff | N9: Ongoing Ongoing In place In place In place In progress | O9: 2 | P9: 2 | Q9: n | R9: YELLOW | S9: 4 | T9: No Change
B10: 7 | C10: Compliance with EDI legal and regulatory obligations, including Public Sector Equality Duty and SFC requirements and the development of a fully inclusive environment for staff and students. | D10: DoPeople | E10: Head of Organis. Developm. HR | F10: Non-compliance with legislation Non-compliance with E&D policies | G10: 3 | H10: 3 | I10: n | J10: AMBER | K10: 9 | L10: Treat | M10: Equality, Diversity and Inclusion Committee continues to meet ensuring progress against the Aberdeen 2040 action plan/inclusive theme and wider strategic matters relating to EDI. Produce Mainstreaming and Equality Outcome Reports biannually Athena SWAN awards, Race Equality Charter, Stonewall Workplace Equality Index BSL Policy Gender Pay Gap Reporting SFC iGAP - now not required by SFC E&D training (incl. Unconscious bias) Embed E&D in all activities Protected Characteristics data collection and reporting Promote internal diversity networks Support AUSA Mental health and wellbeing Strategy implementation Development of Gender Based Violence policy and action plan and implemtation of the Equally Safe in HE toolkit Dignity at Work and Study Toolkit Compliance with REF E&D requirements Antiracism Strategy approved by Court and implementation to be undertaken Tackling Racial Harassment Action plan | N10: In place In place In place In place In place In progress In progress In progress In progress In progress In progress In progress In progress In place In progress In progress | O10: 1 | P10: 2 | Q10: n | R10: GREEN | S10: 2 | T10: No Change
I11: n | J11: GREEN | K11: =G11*H11 -> 0 | Q11: n | R11: GREEN | S11: 0
I12: n | J12: GREEN | K12: 0 | Q12: n | R12: GREEN | S12: 0
I13: n | J13: GREEN | K13: 0 | Q13: n | R13: GREEN | S13: 0
I14: n | J14: GREEN | K14: 0 | Q14: n | R14: GREEN | S14: 0
I15: n | J15: GREEN | K15: 0 | Q15: n | R15: GREEN | S15: 0
I16: n | J16: GREEN | K16: 0 | Q16: n | R16: GREEN | S16: 0
I17: n | J17: GREEN | K17: 0 | Q17: n | R17: GREEN | S17: 0
I18: n | J18: GREEN | K18: 0 | Q18: n | R18: GREEN | S18: 0
I19: n | J19: GREEN | K19: 0 | Q19: n | R19: GREEN | S19: 0
I20: n | J20: GREEN | K20: 0 | Q20: n | R20: GREEN | S20: 0
I21: n | J21: GREEN | K21: 0 | Q21: n | R21: GREEN | S21: 0
I22: n | J22: GREEN | K22: 0 | Q22: n | R22: GREEN | S22: 0

Sheet Health, Safety, Wellbeing & Res
B1: Strategic Risk Area: | D1: Health, Safety, Wellbeing & Resilience | G1: (Staff and Students)
B3: No. | C3: Risk (what could happen) | D3: Risk Owner | E3: Risk Manager | F3: Consequences (how would this affect the University) | G3: Likelihood | H3: Impact | I3: Unmitigated Score (gross) | L3: Response | M3: Mitigations (what is being/has been done to control the risk) | N3: Status (in place/in progress/under consideration) | O3: Likelihood | P3: Impact | Q3: Mitigated Score (net) | T3: Risk Movement
B4: 1 | C4: Failure to progress day-to-day health and safety management (including fire safety) | D4: US & COO | E4: DoPeople | F4: Non-compliance | G4: 3 | H4: 3 | I4: n | J4: =IF(K4<4,"GREEN",IF(AND(K4>3,K4<7),"YELLOW",IF(AND(K4>7,K4<10),"AMBER",IF(AND(K4>9,K4<17),"RED","ERROR")))) -> AMBER | K4: =G4*H4 -> 9 | L4: Treat | M4: Estates and Facilities will continue to carry out statutory checks as far as possible (partially dependent on contractors) | N4: In progress | O4: 2 | P4: 2 | Q4: n | R4: =IF(S4<4,"GREEN",IF(AND(S4>3,S4<7),"YELLOW",IF(AND(S4>7,S4<10),"AMBER",IF(AND(S4>9,S4<17),"RED","ERROR")))) -> YELLOW | S4: =O4*P4 -> 4 | T4: No Change
B5: 2 | C5: Failure to complete or review fire risk assessments for all University-owned or occupied premies | D5: US & COO | E5: DoPeople | F5: Non-compliance | G5: 3 | H5: 3 | J5: =IF(K5<4,"GREEN",IF(AND(K5>3,K5<7),"YELLOW",IF(AND(K5>7,K5<10),"AMBER",IF(AND(K5>9,K5<17),"RED","ERROR")))) -> AMBER | K5: =G5*H5 -> 9 | L5: Treat | M5: Health and Safety Adviser continues to carry out assessments to agreed priorities. | N5: in progress | O5: 2 | P5: 2 | Q5: n | R5: =IF(S5<4,"GREEN",IF(AND(S5>3,S5<7),"YELLOW",IF(AND(S5>7,S5<10),"AMBER",IF(AND(S5>9,S5<17),"RED","ERROR")))) -> YELLOW | S5: =O5*P5 -> 4 | T5: New Risk
B6: 3 | C6: Students with disabilities do not have appropriate adjustments at home to be able to study effectively | D6: TS | E6: VP E | F6: Drop in grades or unable to complete work Impact on health and wellbeing | G6: 3 | H6: 3 | I6: n | J6: =IF(K6<4,"GREEN",IF(AND(K6>3,K6<7),"YELLOW",IF(AND(K6>7,K6<10),"AMBER",IF(AND(K6>9,K6<17),"RED","ERROR")))) -> AMBER | K6: =G6*H6 -> 9 | L6: Treat | M6: Survey to students has been issued Further survey to disabled students considered Funding available to students through Hardship Fund to purchase additional equipment Existing support and access to DSA is still available and has been enhanced with additional staffing in Dec.2020. | N6: In place Under consideration In place In place | O6: 2 | P6: 2 | Q6: n | R6: =IF(S6<4,"GREEN",IF(AND(S6>3,S6<7),"YELLOW",IF(AND(S6>7,S6<10),"AMBER",IF(AND(S6>9,S6<17),"RED","ERROR")))) -> YELLOW | S6: =O6*P6 -> 4 | T6: No Change
B7: 4 | C7: Significant Failure of Health and Safety Management leading to fatality, injury or illhealth arising from University activities on campus and elsewhere. | D7: US & COO | E7: DoPeople | F7: Injury, work related illhealth, enforcement action, civil claims and reputational damage. | G7: 3 | H7: 3 | I7: n | J7: AMBER | K7: 9 | L7: Treat | M7: Health and safety management overseen by quarterly H&S Committee meetings (and sub-committees) H&S Risk Register in place H&S Policy Review Programme Regular H&S communications to staff and students Mandatory induction and training undertaken Monitoring of accidents and incidents in place H&S audit programme | N7: Ongoing In place In place In place In place In place in place | O7: 2 | P7: 2 | Q7: n | R7: YELLOW | S7: 4 | T7: No Change
B8: 5 | C8: Insufficient business continuity and emergency response arrangements | D8: US & COO | E8: DoPeople | F8: Failure to meet duty of care in an emergency Loss of income Reputational damage | G8: 3 | H8: 3 | I8: n | J8: AMBER | K8: 9 | L8: Treat | M8: Resilience Advisory Group oversees arrangements Busines Impact Assessments carried out BC Plans in place Plans exercise to agreed programme | N8: In place in place in place in place | O8: 2 | P8: 2 | Q8: n | R8: YELLOW | S8: 4 | T8: No Change
I9: n | J9: GREEN | K9: 0 | Q9: n | R9: GREEN | S9: 0
I10: n | J10: GREEN | K10: 0 | Q10: n | R10: GREEN | S10: 0
I11: n | J11: GREEN | K11: 0 | Q11: n | R11: GREEN | S11: 0
I12: n | J12: GREEN | K12: 0 | Q12: n | R12: GREEN | S12: 0
I13: n | J13: GREEN | K13: 0 | Q13: n | R13: GREEN | S13: 0
I14: n | J14: GREEN | K14: 0 | Q14: n | R14: GREEN | S14: 0
I15: n | J15: GREEN | K15: 0 | Q15: n | R15: GREEN | S15: 0
I16: n | J16: GREEN | K16: 0 | Q16: n | R16: GREEN | S16: 0

Sheet International Partnerships
B1: Strategic Risk Area: | D1: International Partnerships
B3: No. | C3: Risk (what could happen) | D3: Risk Owner | E3: Risk Manager | F3: Consequences (how would this affect the University) | G3: Likelihood | H3: Impact | I3: Unmitigated Score (gross) | L3: Response | M3: Mitigations (what is being/has been done to control the risk) | N3: Status (in place/in progress/under consideration) | O3: Likelihood | P3: Impact | Q3: Mitigated Score (net) | T3: Risk Movement
B4: 1 | C4: Inadequate response to the management of international security risks, outside interference with research and academic discourse, and challenges to the protection of human rights and the University's core values. | D4: VP GR | E4: TNE Manager | F4: Failure to protect intellectual proprerty rights Exposure to the potential actions of politically or ideologically motivated individuals and state influence. Failure to safeguard the transfer of personal data in international partnerships Failure to recognise the need for the protection of the rights and privacy of staff and students in the use of their data. Failure to comply with anti-bribery and anti-corruption measures Failure to safeguard the acdemic freedom of the University and its staff Failure to protect the human rights of students and staff. | G4: 4 | H4: 4 | I4: n | J4: =IF(K4<4,"GREEN",IF(AND(K4>3,K4<7),"YELLOW",IF(AND(K4>7,K4<10),"AMBER",IF(AND(K4>9,K4<17),"RED","ERROR")))) -> RED | K4: =G4*H4 -> 16 | L4: Treat | M4: Establish TFG to scope immediate actions and project work to implement UUKi guidelines for the management of international security risk. Proactive management of cyber security attack risk Intellectual Property policies in place and incorporated into partnership agreements Policies in place on freedom of speech and academic freedom, for incorporation into partneship agreements Incorporation of international security issues in transnational project approval and monitoring Develop guidance and process for registration of projects/partnertships under the National Security Investment Act 2021 (retrospective to 2020) Safeguards for international data transfers in agreements with partners and liaison with data protection professionals when formulating agreements. Ensure all partnership agreements have sufficient termination clauses, that due diliegence is refreshed on their consideration for renewal, and that a dedicated exit strategy exists and is regularly reviewed. | N4: In progress (target July 2022) In place In place Under consideration Under consideration Under consideration In progress (target July 2022) In progress (target July 2022). | O4: 3 | P4: 4 | Q4: n | R4: =IF(S4<4,"GREEN",IF(AND(S4>3,S4<7),"YELLOW",IF(AND(S4>7,S4<10),"AMBER",IF(AND(S4>9,S4<17),"RED","ERROR")))) -> RED | S4: =O4*P4 -> 12 | T4: No Change
B5: 2 | C5: Existing partnerships are impacted by changes in higher education policy emanating from governmental organisations (such as the Chinese Ministry of Education) | D5: VP GR | E5: Dean for International Student Pathways & Progression | F5: Obstruction to partnership operating models and business plans Inability to deliver or contribute to academic programmes Damage to relationships with policy authorities, partner institutions and other stakeholders Damage to reputation and future relationships Loss of income | G5: 4 | H5: 4 | I5: n | J5: RED | K5: =G5*H5 -> 16 | L5: Treat | M5: Develop stronger and more formal relationships with key government stakeholders. Work in partnership with other Scottish universities through Universities Scotland to strengthen relationships with international government organisations. Maintain strong communication links with partners. Continually review external environment informed by market intelligence Work with Universities Scotland and partners incuding SCNU to respond to changes in CSCSE policy regarding 'one third rule'. Ensure all partnership agreements have sufficient termination clauses, that due diliegence is refreshed on their consideration for renewal, and that a seperate exit strategy exists and is regularly reviewed. | N5: In progress In place In place In place In progress (target August 2022) In progress (target August 2022) | O5: 4 | P5: 3 | Q5: n | R5: =IF(S5<4,"GREEN",IF(AND(S5>3,S5<7),"YELLOW",IF(AND(S5>7,S5<10),"AMBER",IF(AND(S5>9,S5<17),"RED","ERROR")))) -> RED | S5: =O5*P5 -> 12 | T5: Up
B6: 3 | C6: Instability in the external environment, due to economic, geopolitical, military, or public health factors causing disruption to partnership activity in affected parts of the world, and to wider international relationships. | D6: VP GR | E6: TNE Manager | F6: Inability to undertake international travel for visits to international partners for partnership governance, recruitment and conversion purposes Disruption to political and and business relationships in key markets, impacting on business continuity Obstructions to financial payments from patners due to financial or currency controls, and/or exchange rate fluctuations Loss of income and/or access to student recruitment in key markets Deleterious impact on the student experience, and potential disruption to student progression and completion | G6: 2 | H6: 4 | I6: n | J6: =IF(K6<4,"GREEN",IF(AND(K6>3,K6<7),"YELLOW",IF(AND(K6>7,K6<10),"AMBER",IF(AND(K6>9,K6<17),"RED","ERROR")))) -> AMBER | K6: =G6*H6 -> 8 | L6: Treat | M6: Monitoring of international diplomatic, military and geopolitical tensions and their potential consequences Monitoring of the regional political, economic and socio-cultural conditions in areas of significant partnership activity Maintaining strong communication links with partners to provide early awareness of changes in their external environments. Monitoring of the external environment informed by market intelligence and liaison with FCDO, UUKi and other bodies. Diversification of international partnership activity by georaphical region, gepoloitical alignment, and ecomonic interdependency. Ensure all partnership agreements have sufficient termination clauses, that due diliegence is refreshed on their consideration for renewal, and that a seperate exit strategy exists and is regularly reviewed for each. | N6: In place In place In place In place Under consideration In progress (target August 2022) | O6: 3 | P6: 4 | Q6: n | R6: =IF(S6<4,"GREEN",IF(AND(S6>3,S6<7),"YELLOW",IF(AND(S6>7,S6<10),"AMBER",IF(AND(S6>9,S6<17),"RED","ERROR")))) -> RED | S6: =O6*P6 -> 12 | T6: Up
B7: 4 | C7: Objectives and projected growth for the AFG College with the University of Aberdeen partnership in Qatar are not fully realised. | D7: VP GR | E7: TNE Manager | F7: Failure to deliver student recruitment growth and broadening of academic portfolio Disruption to academic provision and deleterious impact on the student experience. Disruption to the recruitment of potential future students. Reputational damage in-country with Ministry of Education and Higher Education (MoEHE) Problems in the relationship with AFG College. Inability to approve or proceed with the planned Phase 2 expansion of activity. Failure to realise potential income growth. | G7: 4 | H7: 3 | I7: n | J7: =IF(K7<4,"GREEN",IF(AND(K7>3,K7<7),"YELLOW",IF(AND(K7>7,K7<10),"AMBER",IF(AND(K7>9,K7<17),"RED","ERROR")))) -> RED | K7: =G7*H7 -> 12 | L7: Treat | M7: Establishment of new governance structures and Partnership Management Group. Establish Partnership Develpoment Plan and associated KPIs, and close monitoring of student recruitment outturns and projections. Regular contact between senior representatives of the University and AFG College. Conclusion of new Academic Cooperation Agreement and updating of due diligence prior to resigning. Identify additional market relevant programmes supported by market research and local intelligence for applications to MoEHE. Secure critical path timeline from AFG College for Phase Two New Premises construction and campus opening Refreshing of exit strategy, and careful attention to termination clauses in ACA, for enactment if required. | N7: In place In place In place In progress (target June 2022) In place In progress (target June 22) Under Consideration (exit strategy) | O7: 3 | P7: 3 | Q7: n | R7: =IF(S7<4,"GREEN",IF(AND(S7>3,S7<7),"YELLOW",IF(AND(S7>7,S7<10),"AMBER",IF(AND(S7>9,S7<17),"RED","ERROR")))) -> AMBER | S7: =O7*P7 -> 9 | T7: No Change
B8: 5 | C8: Failure to develop existing partnerships and deliver new partnerships for the recruitment of international undergraduate students through articulation arrangements. | D8: VP GR | E8: Dean for International Student Pathways & Progression | F8: Loss of tuition fee income Failure to diversify articulation opportunities across academic disciplines and subject areas Increased exposure to dependence on articulation from a small number of parrtnerships Increasing exposure to shifts in geopolitical tensions, economic circumstances, and student demand Loss of goodwill with international partners and government stakeholders Negative impact on reputation and future relationships | G8: 3 | H8: 3 | I8: n | J8: AMBER | K8: =G8*H8 -> 9 | L8: Treat | M8: Processes in place to ensure appropriate partnership governance and regular communication Engagement with articulation partner senior staff to maintain positive strategic relationships Liaising with partners to ensure appropriate information is available to partners and prospective students Partner engagement and student outreach to encourage conversion of students to transfer to Aberdeen for study Maintaining regular communication with articulation partners for the purposes of forward student number projections Explore new pathways and routes to study with existing partners through regular and open dialogue Work with third parties such as the British Council to explore new articulation markets and partners | N8: In place In place In place In place In progress In progress Under consideration | O8: 2 | P8: 2 | Q8: n | R8: =IF(S8<4,"GREEN",IF(AND(S8>3,S8<7),"YELLOW",IF(AND(S8>7,S8<10),"AMBER",IF(AND(S8>9,S8<17),"RED","ERROR")))) -> YELLOW | S8: =O8*P8 -> 4 | T8: No Change
B9: 6 | C9: Failure to deliver the full implementation of the Joint Institute for Data Science and Artificial Intelligence with SCNU. | D9: VP GR | E9: SCNU Project Sponsor (G Gordon) | F9: Loss of income under revenue sharing arrangements Loss of goodwill with partners and government stakeholders Compromised ability to further develop activity with the partner Damage to relationship with Chinese Ministry of Education and prospects of approval for future activity in China Reputational damage and negative impact on appetite for future collaborative opportunities Deleterious impact on the student experience. | G9: 4 | H9: 3 | I9: n | J9: RED | K9: =G9*H9 -> 12 | L9: Treat | M9: Liaising with the partners to ensure appropriate information is available to support the recruitment and conversion of prospective students Effective governance arrangements in place with appropriate committee structure and regular monitoring of student numbers projections Relationship management involving direct engagement at a senior and distributed management level with counterparts across the partner institutions. Planning for the recruitment of academic and professional support staff at both SCNU and Aberdeen for the full delivery of the three programmes of study Membership of the UK-China Joint Institute Alliance for the sharing of experience and effective practice in the operation of JIs. | N9: In place In place In place In progress (target September 2022) In place | O9: 2 | P9: 2 | Q9: n | R9: =IF(S9<4,"GREEN",IF(AND(S9>3,S9<7),"YELLOW",IF(AND(S9>7,S9<10),"AMBER",IF(AND(S9>9,S9<17),"RED","ERROR")))) -> YELLOW | S9: =O9*P9 -> 4 | T9: No Change
I10: n | J10: GREEN | K10: 0 | Q10: n | R10: =IF(S10<4,"GREEN",IF(AND(S10>3,S10<7),"YELLOW",IF(AND(S10>7,S10<10),"AMBER",IF(AND(S10>9,S10<17),"RED","ERROR")))) -> GREEN | S10: =O10*P10 -> 0
I11: n | J11: GREEN | K11: 0 | Q11: n | R11: GREEN | S11: 0
I12: n | J12: GREEN | K12: 0 | Q12: n | R12: GREEN | S12: 0
I13: n | J13: GREEN | K13: 0 | Q13: n | R13: GREEN | S13: 0
I14: n | J14: GREEN | K14: 0 | Q14: n | R14: GREEN | S14: 0
I15: n | J15: GREEN | K15: 0 | Q15: n | R15: GREEN | S15: 0
I16: n | J16: GREEN | K16: 0 | Q16: n | R16: GREEN | S16: 0
I17: n | J17: GREEN | K17: 0 | Q17: n | R17: GREEN | S17: 0
I18: n | J18: GREEN | K18: 0 | Q18: n | R18: GREEN | S18: 0
I19: n | J19: GREEN | K19: 0 | Q19: n | R19: GREEN | S19: 0
I20: n | J20: GREEN | K20: 0 | Q20: n | R20: GREEN | S20: 0
I21: n | J21: GREEN | K21: 0 | Q21: n | R21: GREEN | S21: 0
B22: 7 | C22: Fundamental failings in the partnership relationship, or in delivery by the partner, which undermine the effective functioning of the University's operations in Qatar. | D22: VP GR | E22: TNE Manager | F22: Unilateral actions by major stakeholders are destabilising or pose existential threat to the partnership Failure of AFG College staff to engage with University staff to support the partnership Failure of University staff to engage with UoA staff to support the partnership Colleagues at all levels of the partnership do not deliver their responsibilities in accordance with the Agreement and for the mutual benefit of the partnership. Negative consequences for the staff and student experience, and for student outcomes Negative impact and reputational damage Potential loss of income to the University from Phase 1 of the relationship with AFG. | G22: 3 | H22: 4 | I22: n | J22: =IF(K22<4,"GREEN",IF(AND(K22>3,K22<7),"YELLOW",IF(AND(K22>7,K22<10),"AMBER",IF(AND(K22>9,K22<17),"RED","ERROR")))) -> RED | K22: =G22*H22 -> 12 | L22: Treat | M22: Robust governance structures that are fit for purpose and circumscribe the latitude for unilateral actions by either party. Close joint working between the partners through QSPB and QPMG and their co-chairing, with regular well-structured and well-documented discussions and decisions Effective relations are maintained at all levels of the partnership through ongoing liaison to ensure a close collaborative working relationship.Inclusion of AFG colleagues in appropriate decision-making structures of the University Academic Cooperation Agreement (ACA; the contract) ensures roles and responsibilities and lines of communication are clearly articulated in all aspects of operation (e.g. quality, financial, operational etc.) ACA stipulates issue resolution processes and grounds for the exercise of break clauses, which are clearly defined and clarify teaching out arrangements in the event of early termination. Refreshing of exit strategy, and careful attention to termination clauses in ACA, to be ready for enactment if required. | N22: In place In place In place In progress (target July 2022) In place In progress (target August 2022) | O22: 3 | P22: 3 | Q22: n | R22: =IF(S22<4,"GREEN",IF(AND(S22>3,S22<7),"YELLOW",IF(AND(S22>7,S22<10),"AMBER",IF(AND(S22>9,S22<17),"RED","ERROR")))) -> AMBER | S22: =O22*P22 -> 9 | T22: Up
B23: 8 | C23: Failure to deliver maximum benefit from foundation study pathway arrangements with Study Group for the progression of international students. | D23: AS | E23: Dean for International Stakeholder Engagement | F23: Los of potential tuition fee revenue from foregone articulations to the University's full programmes Failure to deliver business case objectives for the foundation pathway partnership with Study Group Negative consequences for the working relationship with StudyGroup, and existential threat to continuation of the relationship. Lack of recovery on the University's investment to enable Study Group operations on campus. Deleterious impact on the student experience from small cohort sizes | G23: 3 | H23: 3 | I23: n | J23: =IF(K23<4,"GREEN",IF(AND(K23>3,K23<7),"YELLOW",IF(AND(K23>7,K23<10),"AMBER",IF(AND(K23>9,K23<17),"RED","ERROR")))) -> AMBER | K23: =G23*H23 -> 9 | L23: Treat | M23: International Study Centre in operation and suported by effective staffing resorce from both Study Group and the University Effective governance arrangements in place with appropriate committee structure and regular monitoring of student numbers projections. Close liaison with regard to market conditions, horizon scanning, and new devopment opportunities. Continually seeking new pathways and routes with existing partners | N23: In place In place In place | O23: 1 | P23: 2 | Q23: n | R23: =IF(S23<4,"GREEN",IF(AND(S23>3,S23<7),"YELLOW",IF(AND(S23>7,S23<10),"AMBER",IF(AND(S23>9,S23<17),"RED","ERROR")))) -> GREEN | S23: =O23*P23 -> 2 | T23: No Change
B24: 9 | C24: Failure to secure appropriate and effective bilateral agreements to support the international mobility of students. | D24: VP E | E24: DoER | F24: Impairment of employability enhancing opportunities for current and future students Inability to deliver programme experience options as advertised, with potential regulatory and legal consequences. Loss of goodwill with partners and stakeholdersimpacting negatively on reputation and future relationships Mobility arrangements are not effectively governed leading to potential legal and insurance risk consequences. Deleterious impact on the student experience. | G24: 3 | H24: 3 | I24: n | J24: =IF(K24<4,"GREEN",IF(AND(K24>3,K24<7),"YELLOW",IF(AND(K24>7,K24<10),"AMBER",IF(AND(K24>9,K24<17),"RED","ERROR")))) -> AMBER | K24: =G24*H24 -> 9 | M24: Identify scale and scope of mobility arrangements previously governed by Erasmus+ arrangements that require to be replaced. Establish most efficient yet robust approach and timescales for replacing collective mobility agreements with bilateral agreements with partner institutions Ensure mobility agreements set clear expectations (strategic intent) for the relationship, and review dates for agreement review and renewal. Ensure mobility agreements reflect degree of exposure to risk, and provide for safe facilitation of matters such as data exchange. | N24: In place In place In progress (target August 2022) In progress (target August 2022) | O24: 2 | P24: 3 | Q24: n | R24: =IF(S24<4,"GREEN",IF(AND(S24>3,S24<7),"YELLOW",IF(AND(S24>7,S24<10),"AMBER",IF(AND(S24>9,S24<17),"RED","ERROR")))) -> YELLOW | S24: =O24*P24 -> 6 | T24: New Risk
B25: 10 | C25: Failure to develop and maintain existing strategic alliances | D25: KL | E25: TNE Manager | F25: Reputational impact Failure to benefit from income-generating partnerships that may arise from strategic alliances Poor communication/strained relationship between the partners | G25: 2 | H25: 3 | I25: n | J25: =IF(K25<4,"GREEN",IF(AND(K25>3,K25<7),"YELLOW",IF(AND(K25>7,K25<10),"AMBER",IF(AND(K25>9,K25<17),"RED","ERROR")))) -> YELLOW | K25: =G25*H25 -> 6 | L25: Treat | M25: Reputational impact Failure to benefit from income-generating opportunities that may arise from strategic alliances Poor communication/strained relationship between the partners | N25: Ongoing Ongoing Ongoing In progress (target TBC) | O25: 1 | P25: 1 | Q25: n | R25: =IF(S25<4,"GREEN",IF(AND(S25>3,S25<7),"YELLOW",IF(AND(S25>7,S25<10),"AMBER",IF(AND(S25>9,S25<17),"RED","ERROR")))) -> GREEN | S25: =O25*P25 -> 1 | T25: No Change

Sheet Reputation
B1: Strategic Risk Area: | D1: Reputation
B3: No. | C3: Risk (what could happen) | D3: Risk Owner | E3: Risk Manager | F3: Consequences (how would this affect the University) | G3: Likelihood | H3: Impact | I3: Unmitigated Score (gross) | L3: Response | M3: Mitigations (what is being/has been done to control the risk) | N3: Status (in place/in progress/under consideration) | O3: Likelihood | P3: Impact | Q3: Mitigated Score (net) | T3: Risk Movement
B4: 1 | C4: Lack of ownership and understanding of reputation at an institutional and School level | D4: DoER | E4: TBC - Head of Marketing and Brand Development | F4: Impact on league table performance Schools and Directorates do not recognise the challenge associated with reputation and do not embed it in decision making and planning. Lack of governance, ownership and co-ordination Lack baseline data to measure performance and understand the historical context | G4: 2 | H4: 3 | I4: n | J4: =IF(K4<4,"GREEN",IF(AND(K4>3,K4<7),"YELLOW",IF(AND(K4>7,K4<10),"AMBER",IF(AND(K4>9,K4<17),"RED","ERROR")))) -> YELLOW | K4: =G4*H4 -> 6 | L4: Treat | M4: Data gathering and research to support understanding of reputation and provide evidence to support action planning Benchmarking of reputational data School and Directorate planning process Training and development to support understanding reputation management and brand messaging Increased visibility of External Relations team | N4: In progress In progress In progress Under consideration In progress | O4: 1 | P4: 1 | Q4: n | R4: =IF(S4<4,"GREEN",IF(AND(S4>3,S4<7),"YELLOW",IF(AND(S4>7,S4<10),"AMBER",IF(AND(S4>9,S4<17),"RED","ERROR")))) -> GREEN | S4: =O4*P4 -> 1 | T4: No Change
B5: 2 | C5: Failures to perform in League Tables | D5: SVP | E5: Director of Planning / Director of External Relations | F5: Impacts on the institutions ability to attract and retain the best staff and students Undermines strategic priorities of the institution, including financial sustainability and fundraising | G5: 2 | H5: 3 | I5: n | J5: =IF(K5<4,"GREEN",IF(AND(K5>3,K5<7),"YELLOW",IF(AND(K5>7,K5<10),"AMBER",IF(AND(K5>9,K5<17),"RED","ERROR")))) -> YELLOW | K5: =G5*H5 -> 6 | L5: Treat | M5: Further review and proactive monitoring of HESA data from planning Continue analytical work to understand research data more fully, with investigation of opportunities for international benchmarking Planning will proactively engage with individual schools and will offer School meetings/presentations discuss league table results in greater detail. Further enhance league table reporting beyond what is provided in 2020/21 so as to provide as much insight as possible. Continued consideration of Reputational scores through (i) maximising QS contact lists for academics and employers and (ii) engagement with ER re. external data analysis to be carried out on promotional activities relating to academic and research reputation. Planning to support Schools and Professional Services through providing context to the league table analytics appropriate to their area. | N5: In progress In progress In progress In progress In progress In progress | O5: 1 | P5: 1 | Q5: n | R5: =IF(S5<4,"GREEN",IF(AND(S5>3,S5<7),"YELLOW",IF(AND(S5>7,S5<10),"AMBER",IF(AND(S5>9,S5<17),"RED","ERROR")))) -> GREEN | S5: =O5*P5 -> 1 | T5: New Risk
B6: 3 | C6: Reputational damage resulting from the behaviours or actions of a staff member, student, alumni or associated 3rd party (e.g. AUSA or AFG), single incident e.g. data breach or wider issue with non-compliance with good governance or legal requirements. | D6: DoER | E6: JP (Head of Comms) | F6: Refocuses narrative with key stakeholders, including the press and political stakeholders, impacting negatively on the perception of the institution's reputation Undermines wider institutional achievements Impacts the institutional ability to attract and retain the best staff and students, and potential partners Undermines strategic priorities of the institution, including financial sustainability and fundraising | G6: 3 | H6: 3 | I6: n | J6: =IF(K6<4,"GREEN",IF(AND(K6>3,K6<7),"YELLOW",IF(AND(K6>7,K6<10),"AMBER",IF(AND(K6>9,K6<17),"RED","ERROR")))) -> AMBER | K6: =G6*H6 -> 9 | L6: Treat | M6: Encourage culture of openness and transparency such that staff / students / alumni to surface any issues early, and proactively develop strategy to respond to any reputational issues. Firefighting to support rapid response to issues which may arise Utilise social media listening tool to support horizon scanning. Consolidate and enhance relationships with media contacts | N6: Ongoing Ongoing In place Ongoing | O6: 3 | P6: 3 | Q6: n | R6: =IF(S6<4,"GREEN",IF(AND(S6>3,S6<7),"YELLOW",IF(AND(S6>7,S6<10),"AMBER",IF(AND(S6>9,S6<17),"RED","ERROR")))) -> AMBER | S6: =O6*P6 -> 9 | T6: No Change
B7: 4 | C7: External environmental factors impact on the HE sector, and reputational challenge at a sector level impacts on the specifically the University reputation (e.g. Brexit) | D7: DoER | E7: Head of Public Affairs and Stakeholder Engagement | F7: Impact on the ability to attract funding Negative impact on the policy environment | G7: 2 | H7: 3 | I7: n | J7: =IF(K7<4,"GREEN",IF(AND(K7>3,K7<7),"YELLOW",IF(AND(K7>7,K7<10),"AMBER",IF(AND(K7>9,K7<17),"RED","ERROR")))) -> YELLOW | K7: =G7*H7 -> 6 | M7: Ensure proactive horizon scanning to ensure the institution is live to sector wide issues and challenges Ensure proactive engagement with policy makers to ensure understanding of the impact and societal benefit the University supports Link across with the regional agenda and civic university agreement. | N7: In progress In progress In progress | O7: 1 | P7: 1 | Q7: n | R7: =IF(S7<4,"GREEN",IF(AND(S7>3,S7<7),"YELLOW",IF(AND(S7>7,S7<10),"AMBER",IF(AND(S7>9,S7<17),"RED","ERROR")))) -> GREEN | S7: =O7*P7 -> 1 | T7: New Risk
B8: 5 | C8: A gap develops between the institutional reputation i.e. how the University is perceived - either positively or negatively - by different stakeholder groups, and the underlying reality. | D8: DoER | E8: TBC - Head of Marketing and Brand Development | F8: Impact on league table performance Lack brand recognition and wider awareness Reputation does not positively reflect reality of institutional position, impacting reach, recognition, access to funding and ability to attract and retain both staff and students Financial sustainability | G8: 2 | H8: 3 | I8: n | J8: =IF(K8<4,"GREEN",IF(AND(K8>3,K8<7),"YELLOW",IF(AND(K8>7,K8<10),"AMBER",IF(AND(K8>9,K8<17),"RED","ERROR")))) -> YELLOW | K8: =G8*H8 -> 6 | L8: Treat | M8: Stakeholder map to understand our audiences Review ownership of Stakeholder map to ensure it proactively owned as a live document Build data to measure perception of reputation for different stakeholder groups to build understanding of gaps. This should include sentiment analysis Benchmark reputation data against peers to understand UoA reputational performance against that of benchmark group to inform decision making. Create engagement toolkit Review brand portal and assets to support effective and consistent use of the brand Roll out stakeholder engagement programme | N8: In progress In progress In progress In progress In progress and ongoing In progress In progress and ongoing | O8: 3 | P8: 3 | Q8: n | R8: =IF(S8<4,"GREEN",IF(AND(S8>3,S8<7),"YELLOW",IF(AND(S8>7,S8<10),"AMBER",IF(AND(S8>9,S8<17),"RED","ERROR")))) -> AMBER | S8: =O8*P8 -> 9 | T8: No Change
B9: 6 | C9: Predominant culture and focus on crisis communications to protect reputation, rather than proactive management of reputational risk i.e. a reactive approach to reputational issues which have already surfaced rather than a proactive approach to protect or advance reputation. | D9: DoER | E9: JP (Head of Comms) AM (Head of PASE) TBC (Head of Marketing and Brand Development) | F9: Short-termism, reducing focus on longer terms planning to support reputational management Lack of trust in UoA Reduces credibility of strategic vision and its deliverability Undermines strategic priorities of the institution, including financial sustainability and fundraising | G9: 3 | H9: 3 | I9: n | J9: =IF(K9<4,"GREEN",IF(AND(K9>3,K9<7),"YELLOW",IF(AND(K9>7,K9<10),"AMBER",IF(AND(K9>9,K9<17),"RED","ERROR")))) -> AMBER | K9: 9 | L9: Treat | M9: Directorate and School planning process Review of data sharing to understand impact of reputational management (or lack of) Training and development to build understanding of stakeholder holder engagement, reputational management and brand messaging | N9: In progress Under consideration Under consideration | O9: 2 | P9: 3 | Q9: n | R9: =IF(S9<4,"GREEN",IF(AND(S9>3,S9<7),"YELLOW",IF(AND(S9>7,S9<10),"AMBER",IF(AND(S9>9,S9<17),"RED","ERROR")))) -> YELLOW | S9: 6 | T9: No Change
B10: 7 | C10: Lack of brand awareness and brand integrity | D10: DoER | E10: TBC (Head of Marketing and Brand Development) | F10: Reduced ability to amplify institutional voice Lack of differentiation and clear sense of University's purpose and benefits to different stakeholder groups Financial impact Inability to meet student recruitment targets | G10: 3 | H10: 4 | I10: n | J10: =IF(K10<4,"GREEN",IF(AND(K10>3,K10<7),"YELLOW",IF(AND(K10>7,K10<10),"AMBER",IF(AND(K10>9,K10<17),"RED","ERROR")))) -> RED | K10: =G10*H10 -> 12 | L10: Treat | M10: Review brand Consider approach to digital, including University website and social media Roll out updated brand portal including toolkit of assets which be used Maintain visibility range of different tools - both digital and in person | N10: Under consideration In place In progress Ongoing | O10: 2 | P10: 3 | Q10: n | R10: =IF(S10<4,"GREEN",IF(AND(S10>3,S10<7),"YELLOW",IF(AND(S10>7,S10<10),"AMBER",IF(AND(S10>9,S10<17),"RED","ERROR")))) -> YELLOW | S10: =O10*P10 -> 6 | T10: No Change
B11: 8 | C11: Failure to progress Aberdeen 2040, and to ensure appropriate and co-ordinated storytelling to demonstrate progress to both internal and external stakeholder groups. | D11: DoER | E11: JP (Head of Comms) AM (Head of PASE) TBC (Head of Marketing and Brand Development) | F11: Lack of trust in UoA Reduces credibility of strategic vision and its deliverability Reduces institutional buy into strategic vision, undermining is deliverability Undermines strategic priorities of the institution, including financial sustainability and fundraising | G11: 3 | H11: 3 | I11: n | J11: AMBER | K11: 9 | L11: Treat | M11: Aberdeen 2040 5-year planning process Directorate and School planning process Internal training of brand training / messaging | N11: In progress and ongoing In progress and ongoing Under consideration | O11: 2 | P11: 2 | Q11: n | R11: YELLOW | S11: 4 | T11: No Change
B12: 9 | C12: Lack of understanding at an institutional and departmental level of the key stakeholder groups, and as a consequence, an impaired ability to manage their associated expectations. | D12: DoER | E12: AM (Head of PASE | F12: Inability to meet expectations of stakeholders as to role the University can play (e.g. regional stakeholders associated with regional economic regeneration) Reduced ability to leverage external funding Impact on place-making aspect of Aberdeen e.g. loss of key festivals which support message around Aberdeen as a good place to live, work and study | G12: 2 | H12: 2 | I12: n | J12: YELLOW | K12: 4 | L12: Treat | M12: Complete Stakeholder map and role out across Schools and Directorates In conjunction with the VP Regional Engagement and Regional Recovery, ensure comprehensive programme of stakeholder engagement. This will include the development and subsequent implementation of Civic University agreement. Ongoing commitment to events programme which supports Aberdeen 2040 and wider regional engagement and profile. Remain alert to funding and recovery packages made available and initiate early partnerships /collaborations. Training and development to build understanding of stakeholder holder engagement, reputational management and brand messaging | N12: In progress In progress In place Ongoing Under consideration | O12: 2 | P12: 2 | Q12: n | R12: YELLOW | S12: 4 | T12: No Change
B13: 10 | C13: Reputational damage by association with unsuitable funder | D13: US & COO | E13: DoDT & Alumni | F13: Loss of trust in University | G13: 3 | H13: 3 | I13: n | J13: AMBER | K13: 9 | M13: Ensure appropriate governance and due diligence of prospects and donors using existing structures – Compliance Committee, Board of Trustees, Gift Acceptance Policy, Ad hoc committee on gift acceptance, communication between Trust and University, and University’s Governance and Nominations Committee and naming of assets policy | N13: In place | O13: 2 | P13: 2 | Q13: n | R13: YELLOW | S13: 4 | T13: New Risk
I14: n | J14: GREEN | K14: 0 | Q14: n | R14: GREEN | S14: 0
I15: n | J15: GREEN | K15: 0 | Q15: n | R15: GREEN | S15: 0
I16: n | J16: GREEN | K16: 0 | Q16: n | R16: GREEN | S16: 0
I17: n | J17: GREEN | K17: 0 | Q17: n | R17: GREEN | S17: 0
I18: n | J18: GREEN | K18: 0 | Q18: n | R18: GREEN | S18: 0
I19: n | J19: GREEN | K19: 0 | Q19: n | R19: GREEN | S19: 0
I20: n | J20: GREEN | K20: 0 | Q20: n | R20: GREEN | S20: 0
I21: n | J21: GREEN | K21: 0 | Q21: n | R21: GREEN | S21: 0
I22: n | J22: GREEN | K22: 0 | Q22: n | R22: GREEN | S22: 0
I23: n | J23: GREEN | K23: 0 | Q23: n | R23: GREEN | S23: 0
I24: n | J24: GREEN | K24: 0 | Q24: n | R24: GREEN | S24: 0
I25: n | J25: GREEN | K25: 0 | Q25: n | R25: GREEN | S25: 0
I26: n | J26: GREEN | K26: 0 | Q26: n | R26: GREEN | S26: 0
I27: n | J27: GREEN | K27: 0 | Q27: n | R27: GREEN | S27: 0
I28: n | J28: GREEN | K28: 0 | Q28: n | R28: GREEN | S28: 0

Sheet External Environment
B1: Strategic Risk Area: | D1: External Environment
B3: No. | C3: Risk (what could happen) | D3: Risk Owner | E3: Risk Manager | F3: Consequences (how would this affect the University) | G3: Likelihood | H3: Impact | I3: Unmitigated Score (gross) | L3: Response | M3: Mitigations (what is being/has been done to control the risk) | N3: Status (in place/in progress/under consideration) | O3: Likelihood | P3: Impact | Q3: Mitigated Score (net) | T3: Risk Movement
B4: 1 | C4: Global geo-political or health disruptions | D4: US & COO | E4: DoPlanning | F4: Potential for multi-dimensional impacts on the University - students unable to access financial resources, disruption to supply chains, limitations on mobility of staff and students | G4: 3 | H4: 4 | I4: n | J4: =IF(K4<4,"GREEN",IF(AND(K4>3,K4<7),"YELLOW",IF(AND(K4>7,K4<10),"AMBER",IF(AND(K4>9,K4<17),"RED","ERROR")))) -> RED | K4: =G4*H4 -> 12 | L4: Treat | M4: Risk assessment of recruitment markets Increased contingency in project budgets. Development of framework for support for impacted individuals. | N4: Under consideration Under consideration In progress | O4: 3 | P4: 4 | Q4: n | R4: =IF(S4<4,"GREEN",IF(AND(S4>3,S4<7),"YELLOW",IF(AND(S4>7,S4<10),"AMBER",IF(AND(S4>9,S4<17),"RED","ERROR")))) -> RED | S4: =O4*P4 -> 12 | T4: New Risk
B5: 2 | C5: Major constitutional change | D5: US & COO | E5: DoPlanning | F5: Potential for significant disruption to supply chains, mobility of students and distraction of policy makers or repriortisation of public funding. Distruptive impacts possible in run up to any referenda. | G5: 2 | H5: 3 | I5: n | J5: YELLOW | K5: 6 | L5: Treat | M5: Active contingency planning in relation to supply chains and the potential for staffing and student recruitment impacts. Reinforced promotion of University profile. | N5: In progress | O5: 2 | P5: 2 | Q5: n | R5: =IF(S5<4,"GREEN",IF(AND(S5>3,S5<7),"YELLOW",IF(AND(S5>7,S5<10),"AMBER",IF(AND(S5>9,S5<17),"RED","ERROR")))) -> YELLOW | S5: =O5*P5 -> 4 | T5: New Risk
B6: 3 | C6: SG review of the purpose of Tertiary Education fails to recognise HE wider contributions | D6: US & COO | E6: DoPlanning | F6: Potential impact on funding for the sector and consequentially for UoA. Potential for longer-term policy impacts if sector ambitions not seen to be aligned | G6: 2 | H6: 4 | I6: n | J6: AMBER | K6: 8 | L6: Treat | M6: Regular communication with SFC, US, aiming to ensure sector engages Scottish Planners and other sector bodies; Discussions with regional partners | N6: In place In place | O6: 2 | P6: 4 | Q6: n | R6: =IF(S6<4,"GREEN",IF(AND(S6>3,S6<7),"YELLOW",IF(AND(S6>7,S6<10),"AMBER",IF(AND(S6>9,S6<17),"RED","ERROR")))) -> AMBER | S6: =O6*P6 -> 8 | T6: New Risk
B7: 4 | C7: Significant UK policy changes impacting on staff or student recruitment, fees, or research funding. | D7: US & COO | E7: DoPlanning | F7: Impact on student numbers and/or ability to recruit staff Reduction in fee income per head Change in access to research funding | G7: 3 | H7: 2 | I7: n | J7: =IF(K7<4,"GREEN",IF(AND(K7>3,K7<7),"YELLOW",IF(AND(K7>7,K7<10),"AMBER",IF(AND(K7>9,K7<17),"RED","ERROR")))) -> YELLOW | K7: =G7*H7 -> 6 | L7: Treat | M7: Active engagement in relevant policy forums Active horizon scanning and contingency planning | N7: In progress In progress | O7: 2 | P7: 2 | Q7: n | R7: =IF(S7<4,"GREEN",IF(AND(S7>3,S7<7),"YELLOW",IF(AND(S7>7,S7<10),"AMBER",IF(AND(S7>9,S7<17),"RED","ERROR")))) -> YELLOW | S7: =O7*P7 -> 4 | T7: No Change
I8: n | J8: =IF(K8<4,"GREEN",IF(AND(K8>3,K8<7),"YELLOW",IF(AND(K8>7,K8<10),"AMBER",IF(AND(K8>9,K8<17),"RED","ERROR")))) -> GREEN | K8: 0 | Q8: n | R8: =IF(S8<4,"GREEN",IF(AND(S8>3,S8<7),"YELLOW",IF(AND(S8>7,S8<10),"AMBER",IF(AND(S8>9,S8<17),"RED","ERROR")))) -> GREEN | S8: =O8*P8 -> 0
I9: n | J9: GREEN | K9: 0 | Q9: n | R9: GREEN | S9: 0
I10: n | J10: GREEN | K10: 0 | Q10: n | R10: GREEN | S10: 0
I11: n | J11: GREEN | K11: 0 | Q11: n | R11: GREEN | S11: 0
I12: n | J12: GREEN | K12: 0 | Q12: n | R12: GREEN | S12: 0
I13: n | J13: GREEN | K13: 0 | Q13: n | R13: GREEN | S13: 0
I14: n | J14: GREEN | K14: 0 | Q14: n | R14: GREEN | S14: 0
I15: n | J15: GREEN | K15: 0 | Q15: n | R15: GREEN | S15: 0
I16: n | J16: GREEN | K16: 0 | Q16: n | R16: GREEN | S16: 0
I17: n | J17: GREEN | K17: 0 | Q17: n | R17: GREEN | S17: 0
I18: n | J18: GREEN | K18: 0 | Q18: n | R18: GREEN | S18: 0
I19: n | J19: GREEN | K19: 0 | Q19: n | R19: GREEN | S19: 0
I20: n | J20: GREEN | K20: 0 | Q20: n | R20: GREEN | S20: 0
I21: n | J21: GREEN | K21: 0 | Q21: n | R21: GREEN | S21: 0
I22: n | J22: GREEN | K22: 0 | Q22: n | R22: GREEN | S22: 0
I23: n | J23: GREEN | K23: 0 | Q23: n | R23: GREEN | S23: 0
I24: n | J24: GREEN | K24: 0 | Q24: n | R24: GREEN | S24: 0
I25: n | J25: GREEN | K25: 0 | Q25: n | R25: GREEN | S25: 0

Sheet Environmental Sustainability
B1: Strategic Risk Area: | D1: Environmental Sustainability
B3: No. | C3: Risk (what could happen) | D3: Risk Owner | E3: Risk Manager | F3: Consequences (how would this affect the University) | G3: Likelihood | H3: Impact | I3: Unmitigated Score (gross) | L3: Response | M3: Mitigations (what is being/has been done to control the risk) | N3: Status (in place/in progress/under consideration) | O3: Likelihood | P3: Impact | Q3: Mitigated Score (net) | T3: Risk Movement
B4: 1 | C4: Emissions: Failure to make anticipated progress against institutional net-zero target e.g. campus fabric investment fails to deliver decarbonisation ambitions. Links to Estates & Facilities capital programme and infrastructure resilience risks. Note: progress on the key mitigations (see *) should result in the mitigated risk score decreasing. | D4: SVP | E4: Dir E&F | F4: Reputational impact if carbon reduction targets are not met Loss of credibility with external stakeholders, staff, students Associated energy, operational and lifecycle cost impacts / carbon taxes / off-setting charges New builds fail to attain sufficiently robust environmental & emissions standards Hard to treat old building stock is neglected Opportunities to participate in city-wide initiatives are missed e.g. district networks Reliance on fossil fuels into the longer term | G4: 4 | H4: 4 | I4: n | J4: =IF(K4<4,"GREEN",IF(AND(K4>3,K4<7),"YELLOW",IF(AND(K4>7,K4<10),"AMBER",IF(AND(K4>9,K4<17),"RED","ERROR")))) -> RED | K4: =G4*H4 -> 16 | L4: Treat | M4: Development of a net-zero definition and Implementation Plan * Development and active management of a long-term net-zero project risk register * Development of a Business Travel policy to target emissions reduction Identification of and investment in appropriate expertise to take forward net-zero planning and projects * Initial allocation of net-zero project funding identified Sustained investment over multiple years * Wider review of Estate Strategy to include sustainability and stategic energy issues Discussions with local partners about district heating and alternative heat sources e.g. hydrogen Campus Heating Project Board established Heating & Energy strategies being reviewed * Development of Management Information to allow improvements works to be brought forward eg Condition Survey / Energy Survey | N4: in progress in progress in progress in progress in place under consideration in progress in progress in place in progress under consideration | O4: 4 | P4: 4 | Q4: n | R4: =IF(S4<4,"GREEN",IF(AND(S4>3,S4<7),"YELLOW",IF(AND(S4>7,S4<10),"AMBER",IF(AND(S4>9,S4<17),"RED","ERROR")))) -> RED | S4: =O4*P4 -> 16 | T4: No Change
B5: 2 | C5: Resourcing: Failure to adequately resource sustainability commitments or to secure staff with required expertise Links to both the Staffing and Health, Safety & Wellbeing risks. | D5: KL | E5: Dir E&F | F5: Inability to progress key projects Insufficient expertise to understand / address key technical challenges Impact on wellbeing and retention of existing staff | G5: 4 | H5: 3 | I5: n | J5: =IF(K5<4,"GREEN",IF(AND(K5>3,K5<7),"YELLOW",IF(AND(K5>7,K5<10),"AMBER",IF(AND(K5>9,K5<17),"RED","ERROR")))) -> RED | K5: 12 | L5: Treat | M5: Consideration given to appropriate resourcing by University Secretary / COO and SVP with authority to proceed given. Identification of appropriate training for existing staff Embedding of sustainability as part of job descriptions and appraisal process | N5: in progress in progress in progress | O5: 3 | P5: 3 | Q5: n | R5: =IF(S5<4,"GREEN",IF(AND(S5>3,S5<7),"YELLOW",IF(AND(S5>7,S5<10),"AMBER",IF(AND(S5>9,S5<17),"RED","ERROR")))) -> AMBER | S5: =O5*P5 -> 9 | T5: No Change
B6: 3 | C6: Reputation: Inability to demonstrate meaningful commitment to sustainability Links to Reputation risk. | D6: SVP | E6: Hd of SD | F6: Impact on staff and student recruitment and retention Negative media commentary Damage to local, national & international partnerships Student protest and/or challenge Lack of a co-ordinated approach to the Sustainable Development Goals Impacts negatively on SFC Outcome Agreement Failure to capitalise on opportunities e.g. regional colaboration, student engagement etc | G6: 3 | H6: 3 | I6: n | J6: =IF(K6<4,"GREEN",IF(AND(K6>3,K6<7),"YELLOW",IF(AND(K6>7,K6<10),"AMBER",IF(AND(K6>9,K6<17),"RED","ERROR")))) -> AMBER | K6: 9 | L6: Treat | M6: High visibility of senior leadership and key oversight role of Sustainable Development Committee Aberdeen 2040 implementation plan to 2025 in place and evolving Enhanced capacity for sustainabiliy endorsed Consultation arrangements e.g. climate assembly, business travel focus groups First annual SDG Report published ('21) Commitment to THE Impact Ranking exercise | N6: in place in place in progress in progress in place in place | O6: 2 | P6: 3 | Q6: n | R6: =IF(S6<4,"GREEN",IF(AND(S6>3,S6<7),"YELLOW",IF(AND(S6>7,S6<10),"AMBER",IF(AND(S6>9,S6<17),"RED","ERROR")))) -> YELLOW | S6: =O6*P6 -> 6 | T6: No Change
B7: 4 | C7: Reporting: Failure to meet statutory and/or voluntary sectoral reporting requirements. | D7: SVP | E7: Hd of SD | F7: Censure e.g. by SFC re Outcome Agreements Missed deadlines or weak submission e.g. PBCCD Poor league table performance e.g. THE Impact Ranking | G7: 3 | H7: 3 | I7: n | J7: =IF(K7<4,"GREEN",IF(AND(K7>3,K7<7),"YELLOW",IF(AND(K7>7,K7<10),"AMBER",IF(AND(K7>9,K7<17),"RED","ERROR")))) -> AMBER | K7: 9 | L7: Treat | M7: Horizon scanning and membership of sector bodies e.g. EAUC Sustainable Develoment Goals (SDG) group established (covers THE Impact) Sustainability content embedded in Annual Reporting / SDG Report published Consideration being given to appropriate resourcing (addressing single points of failure) | N7: in place in place in place in progress | O7: 2 | P7: 3 | Q7: n | R7: =IF(S7<4,"GREEN",IF(AND(S7>3,S7<7),"YELLOW",IF(AND(S7>7,S7<10),"AMBER",IF(AND(S7>9,S7<17),"RED","ERROR")))) -> YELLOW | S7: 6 | T7: No Change
B8: 5 | C8: Insufficient management of environmental standards Links to Estates & Facilities compliance risks. | D8: KL | E8: Dir E&F | F8: Inability to achieve emissions targets Risk of regulatory breaches e.g. pollution. SFC challenge Reputational damage | G8: 3 | H8: 3 | I8: n | J8: =IF(K8<4,"GREEN",IF(AND(K8>3,K8<7),"YELLOW",IF(AND(K8>7,K8<10),"AMBER",IF(AND(K8>9,K8<17),"RED","ERROR")))) -> AMBER | K8: 9 | L8: Treat | M8: Sustainable Design Guide Infrastructure projects embed environmental sustainability e.g. via BREEAM Robust waste contracts Regular audits and external validation e.g. waste, energy | N8: in progress in progress in place in place | O8: 2 | P8: 3 | Q8: n | R8: =IF(S8<4,"GREEN",IF(AND(S8>3,S8<7),"YELLOW",IF(AND(S8>7,S8<10),"AMBER",IF(AND(S8>9,S8<17),"RED","ERROR")))) -> YELLOW | S8: =O8*P8 -> 6 | T8: No Change
B9: 6 | C9: Integration & Engagement: Failure to fully engage staff and student community in supporting institutional sustainability commitments. Links to Education risk. | D9: SVP | E9: H of SD | F9: Unable to adopt a genuinely shared responsibility for sustainability initiatives Necessary behaviour change is not secured Staff and students feel left out of process Aberdeen 2040 commitments are not achieved | G9: 2 | H9: 3 | I9: n | J9: =IF(K9<4,"GREEN",IF(AND(K9>3,K9<7),"YELLOW",IF(AND(K9>7,K9<10),"AMBER",IF(AND(K9>9,K9<17),"RED","ERROR")))) -> YELLOW | K9: 6 | L9: Treat | M9: Role of Sustainable Development Commiittee in ensuring shared responsibility Consultation and communication mechanisms being considered (e.g. climate assemblies) Enhanced capacity for sustainabiliy endorsed e.g. of behaviour change | N9: in place in progress in progress | O9: 2 | P9: 2 | Q9: n | R9: =IF(S9<4,"GREEN",IF(AND(S9>3,S9<7),"YELLOW",IF(AND(S9>7,S9<10),"AMBER",IF(AND(S9>9,S9<17),"RED","ERROR")))) -> YELLOW | S9: =O9*P9 -> 4 | T9: No Change
I11: n | J11: =IF(K11<4,"GREEN",IF(AND(K11>3,K11<7),"YELLOW",IF(AND(K11>7,K11<10),"AMBER",IF(AND(K11>9,K11<17),"RED","ERROR")))) -> GREEN | K11: 0 | Q11: n | R11: =IF(S11<4,"GREEN",IF(AND(S11>3,S11<7),"YELLOW",IF(AND(S11>7,S11<10),"AMBER",IF(AND(S11>9,S11<17),"RED","ERROR")))) -> GREEN | S11: =O11*P11 -> 0
I12: n | J12: GREEN | K12: =G12*H12 -> 0 | Q12: n | R12: GREEN | S12: 0
I13: n | J13: GREEN | K13: 0 | Q13: n | R13: GREEN | S13: 0
I14: n | J14: GREEN | K14: 0 | Q14: n | R14: GREEN | S14: 0
I15: n | J15: GREEN | K15: 0 | Q15: n | R15: GREEN | S15: 0
I16: n | J16: GREEN | K16: 0 | Q16: n | R16: GREEN | S16: 0
I17: n | J17: GREEN | K17: 0 | Q17: n | R17: GREEN | S17: 0
I18: n | J18: GREEN | K18: 0 | Q18: n | R18: GREEN | S18: 0
I19: n | J19: GREEN | K19: 0 | Q19: n | R19: GREEN | S19: 0
I20: n | J20: GREEN | K20: 0 | Q20: n | R20: GREEN | S20: 0
I21: n | J21: GREEN | K21: 0 | Q21: n | R21: GREEN | S21: 0
I22: n | J22: GREEN | K22: 0 | Q22: n | R22: GREEN | S22: 0
I23: n | J23: GREEN | K23: 0 | Q23: n | R23: GREEN | S23: 0
I24: n | J24: GREEN | K24: 0 | Q24: n | R24: GREEN | S24: 0
I25: n | J25: GREEN | K25: 0 | Q25: n | R25: GREEN | S25: 0
I26: n | J26: GREEN | K26: 0 | Q26: n | R26: GREEN | S26: 0

Sheet Leadership and Governance
B1: Strategic Risk Area: | D1: Leadership and Governance
B3: No. | C3: Risk (what could happen) | D3: Risk Owner | E3: Risk Manager | F3: Consequences (how would this affect the University) | G3: Likelihood | H3: Impact | I3: Unmitigated Score (gross) | L3: Response | M3: Mitigations (what is being/has been done to control the risk) | N3: Status (in place/in progress/under consideration) | O3: Likelihood | P3: Impact | Q3: Mitigated Score (net) | T3: Risk Movement
B4: 1 | C4: Lack of effective engagement with Scottsh Government results in delayed removal of sector level Covid restrictions/loss of competitive advantage for the Scottish sector/University of Aberdeen | D4: Principal | E4: US & COO | F4: Staff and student dissatisfaction Lack of engagement Drop in motivation Drop in staff productivity Reputational damage | G4: 2 | H4: 4 | I4: n | J4: =IF(K4<4,"GREEN",IF(AND(K4>3,K4<7),"YELLOW",IF(AND(K4>7,K4<10),"AMBER",IF(AND(K4>9,K4<17),"RED","ERROR")))) -> AMBER | K4: =G4*H4 -> 8 | L4: Treat | M4: Engagement with Covid-leads network and on testing/vaccination/ventilation groups with Scottish Government. Coronavirus Steering Group set up with sub-groups (replaced in end of April with a Covid-19 Campus Planning Group and various sub-groups) to manage effective implementation of covid restrictions Regular communication with staff and dedicated webpage set up | N4: All in place | O4: 2 | P4: 3 | Q4: n | R4: =IF(S4<4,"GREEN",IF(AND(S4>3,S4<7),"YELLOW",IF(AND(S4>7,S4<10),"AMBER",IF(AND(S4>9,S4<17),"RED","ERROR")))) -> YELLOW | S4: =O4*P4 -> 6 | T4: Down
B5: 2 | C5: Delivery of the Aberdeen 2040 Strategy delayed due to staff workload and time pressures, or disrupted by external environment factors. | D5: Principal | E5: SVP | F5: Reputational damage Financial impact Staff satisfaction | G5: 4 | H5: 3 | I5: n | J5: RED | K5: 12 | L5: Treat | M5: Institutional risk management and mitigations in place across the university to ensure that adequate resource is in place in all key areas to take forward delivery, and to facilitate effective management of staff workloads; ultimately reducing any potential impacts on the 20-year strategy. For external factors, the University is engaged in horizon scanning on an ongoing basis, and undertakes scenario planning as part of its wider planning arrangements. As shown with Covid, the University has proven agile and effective in responding to disruptive changes in the external environment. All mitigations associated with this risk will be kept under review to ensure effectiveness. | N5: In progress | O5: 3 | P5: 3 | Q5: n | R5: AMBER | S5: 9 | T5: Up
B6: 4 | C6: Membership of Court not sufficiently diverse to effectively reflect and govern the University community | D6: US & COO | E6: Head of Governance (TBC) | F6: Lack of informed and constructive challenge to strategy development from perspective of diverse community. Reputational Damage | G6: 2 | H6: 2 | I6: n | J6: YELLOW | K6: 4 | L6: Treat | M6: Regular review of diversity of Court Membership via Governance and Nominations Committee. Prioritisation of greater diversity in Court recruitment has been agreed and commitments made in Court' Statement of Intent on Diversity | N6: In Place | O6: 2 | P6: 2 | Q6: n | R6: YELLOW | S6: 4 | T6: No Change
B7: 5 | C7: Failure to prioritise key measures (Widening Access) within the SFC Outcome Agreement process | D7: US & COO | E7: DoPlanning | F7: Potential financial impact as funding is offered on condition that and OA meet the required standard Impact on the relationship with the SFC and the SG Reputational impact | G7: 3 | H7: 4 | I7: n | J7: =IF(K7<4,"GREEN",IF(AND(K7>3,K7<7),"YELLOW",IF(AND(K7>7,K7<10),"AMBER",IF(AND(K7>9,K7<17),"RED","ERROR")))) -> RED | K7: =G7*H7 -> 12 | L7: Treat | M7: Explicitly addressed as part of planning round considerations and at relevant Committees considering policy implementation. Regular communication with SFC, US, Scottish Planners and other sector bodies; Discussions with regional partners | N7: in place in place in place in place | O7: 3 | P7: 2 | Q7: n | R7: =IF(S7<4,"GREEN",IF(AND(S7>3,S7<7),"YELLOW",IF(AND(S7>7,S7<10),"AMBER",IF(AND(S7>9,S7<17),"RED","ERROR")))) -> YELLOW | S7: =O7*P7 -> 6 | T7: No Change
B8: 6 | C8: Failure to engage with the regional stakeholders, NHS and businesses including through the Pathfinder implementation (SFC review of coherence and sustainability of the Scottish tertiary sector) | D8: VP RR | E8: DoER | F8: Loss of political and policy influence as well as reputation if SFC perceived to be not engaged. Relative disadvantage if funding mechanism adjusted as a consequence. Aberdeen 2040 commitments undermined if excluded from regional partnership relationships. | G8: 3 | H8: 3 | I8: n | J8: =IF(K8<4,"GREEN",IF(AND(K8>3,K8<7),"YELLOW",IF(AND(K8>7,K8<10),"AMBER",IF(AND(K8>9,K8<17),"RED","ERROR")))) -> AMBER | K8: =G8*H8 -> 9 | L8: Treat | M8: Active engagement with Regional Stakeholders and business leaders. Re-establishment of liaison group with NHS around Foresterhill Regular communication with SFC, US, Scottish Planners and other sector bodies; Discussions with regional partners | N8: In development In place In place In place | O8: 3 | P8: 3 | Q8: n | R8: =IF(S8<4,"GREEN",IF(AND(S8>3,S8<7),"YELLOW",IF(AND(S8>7,S8<10),"AMBER",IF(AND(S8>9,S8<17),"RED","ERROR")))) -> AMBER | S8: =O8*P8 -> 9 | T8: Up
I9: n | J9: GREEN | K9: 0 | Q9: n | R9: GREEN | S9: 0
I10: n | J10: GREEN | K10: 0 | Q10: n | R10: GREEN | S10: 0
I11: n | J11: GREEN | K11: 0 | Q11: n | R11: GREEN | S11: 0
I12: n | J12: GREEN | K12: 0 | Q12: n | R12: GREEN | S12: 0
I13: n | J13: GREEN | K13: 0 | Q13: n | R13: GREEN | S13: 0
I14: n | J14: GREEN | K14: 0 | Q14: n | R14: GREEN | S14: 0
I15: n | J15: GREEN | K15: 0 | Q15: n | R15: GREEN | S15: 0
I16: n | J16: GREEN | K16: 0 | Q16: n | R16: GREEN | S16: 0

Sheet AUSA and Other Third Parties
B1: Strategic Risk Area: | D1: AUSA and Other Third Parties
B3: No. | C3: Risk (what could happen) | D3: Risk Owner | E3: Risk Manager | F3: Consequences (how would this affect the University) | G3: Likelihood | H3: Impact | I3: Unmitigated Score (gross) | L3: Response | M3: Mitigations (what is being/has been done to control the risk) | N3: Status (in place/in progress/under consideration) | O3: Likelihood | P3: Impact | Q3: Mitigated Score (net) | T3: Risk Movement
B4: 1 | C4: Impact on Rocking Horse Nursery from extended closure, reduced occupancy levels or failure to maintain access to national childcare schemes. | D4: US & COO | E4: Nursery Trustees | F4: Financial impact (e.g. reserves exhausted beyond prudent levels) Inability to pay the University Service Charge Reputational impact and exposure of trustees to personal liability/university as defacto trustee. Staff salaries Staff and student satisfaction | G4: 4 | H4: 4 | I4: n | J4: =IF(K4<4,"GREEN",IF(AND(K4>3,K4<7),"YELLOW",IF(AND(K4>7,K4<10),"AMBER",IF(AND(K4>9,K4<17),"RED","ERROR")))) -> RED | K4: =G4*H4 -> 16 | L4: Treat | M4: Revision of fees and fees strategy Revision of salary strategy Liaison with Finance Directorate Review of Corporate form. | N4: In pIrogress In progress In place To be initiated | O4: 3 | P4: 3 | Q4: n | R4: =IF(S4<4,"GREEN",IF(AND(S4>3,S4<7),"YELLOW",IF(AND(S4>7,S4<10),"AMBER",IF(AND(S4>9,S4<17),"RED","ERROR")))) -> AMBER | S4: =O4*P4 -> 9 | T4: No Change
B5: 2 | C5: Impact on ASV following a prolonged period of lockdown and actions already taken e.g. restricted opening, reduced staffing, and other adaptations to recover from initial period of closure | D5: US & COO | E5: ASV | F5: Financial impact Reputational impact Staff and student experience Membership attrition | G5: 4 | H5: 4 | I5: n | J5: =IF(K5<4,"GREEN",IF(AND(K5>3,K5<7),"YELLOW",IF(AND(K5>7,K5<10),"AMBER",IF(AND(K5>9,K5<17),"RED","ERROR")))) -> RED | K5: =G5*H5 -> 16 | L5: Treat | M5: ASV reopened on 26/04/21 after a four month lockdown (during which only elite sport took place). Furough scheme used as mitigation. Active redesign of pricing and marketing to support recovery of membership Emergency use of elements of operational and lifecycle reserve - agreed with shareholders to reduce an anticipated operating deficit in 20/21 and 21/22 Regular discussion with shareholders (UoA and ACC) at ASV Joint Partnership) | N5: Ongoing In place In place On going | O5: 3 | P5: 3 | Q5: n | R5: =IF(S5<4,"GREEN",IF(AND(S5>3,S5<7),"YELLOW",IF(AND(S5>7,S5<10),"AMBER",IF(AND(S5>9,S5<17),"RED","ERROR")))) -> AMBER | S5: =O5*P5 -> 9 | T5: No Change
B6: 3 | C6: AUSA sustainability | D6: US & COO | E6: AUSA Chief Exec. | F6: Financial impact - requiring additional support from the University | G6: 2 | H6: 3 | I6: n | J6: =IF(K6<4,"GREEN",IF(AND(K6>3,K6<7),"YELLOW",IF(AND(K6>7,K6<10),"AMBER",IF(AND(K6>9,K6<17),"RED","ERROR")))) -> YELLOW | K6: =G6*H6 -> 6 | L6: Treat | M6: Strategic review commissioned by AUSA Board Active engagement on planning with UoA. | N6: In progress In progress | O6: 3 | P6: 2 | Q6: n | R6: =IF(S6<4,"GREEN",IF(AND(S6>3,S6<7),"YELLOW",IF(AND(S6>7,S6<10),"AMBER",IF(AND(S6>9,S6<17),"RED","ERROR")))) -> YELLOW | S6: =O6*P6 -> 6 | T6: No Change
B7: 4 | C7: Extended transition following Covid Pandemic impacts on sustainability of third party catering and other providers on campus (e.g. Kilau, Food Story, Subway, Blackwells, Starbucks etc) | D7: US & COO | E7: Head of Catering and Commercial Services | F7: Financial impact (rental income >£10k per month) Staff and student experience (risk of loss of key campus providers) Other independent traders (e.g. Shelter Coffee, Machar Bar, JG Ross, Newsagent) may close with impact on staff and student amenities | G7: 4 | H7: 4 | I7: n | J7: =IF(K7<4,"GREEN",IF(AND(K7>3,K7<7),"YELLOW",IF(AND(K7>7,K7<10),"AMBER",IF(AND(K7>9,K7<17),"RED","ERROR")))) -> RED | K7: 16 | L7: Treat | M7: Regular contact with Head of Commercial & Catering Reversion to base rent (i.e. Starbucks) rather than top-up rent SMT agreed policy on how to deal with third party rentals Further consideration of additional support options reviewed and determined, on an individual case by case basis | N7: In place In place In place Under consideration | O7: 2 | P7: 3 | Q7: n | R7: =IF(S7<4,"GREEN",IF(AND(S7>3,S7<7),"YELLOW",IF(AND(S7>7,S7<10),"AMBER",IF(AND(S7>9,S7<17),"RED","ERROR")))) -> YELLOW | S7: 6 | T7: No Change
I8: n | J8: GREEN | K8: 0 | Q8: n | R8: GREEN | S8: 0
I9: n | J9: GREEN | K9: 0 | Q9: n | R9: GREEN | S9: 0
I10: n | J10: GREEN | K10: 0 | Q10: n | R10: GREEN | S10: 0
I11: n | J11: GREEN | K11: 0 | Q11: n | R11: GREEN | S11: 0
I12: n | J12: GREEN | K12: 0 | Q12: n | R12: GREEN | S12: 0
I13: n | J13: GREEN | K13: 0 | Q13: n | R13: GREEN | S13: 0
I14: n | J14: GREEN | K14: 0 | Q14: n | R14: GREEN | S14: 0
I15: n | J15: GREEN | K15: 0 | Q15: n | R15: GREEN | S15: 0
I16: n | J16: GREEN | K16: 0 | Q16: n | R16: GREEN | S16: 0
I17: n | J17: GREEN | K17: 0 | Q17: n | R17: GREEN | S17: 0
I18: n | J18: GREEN | K18: 0 | Q18: n | R18: GREEN | S18: 0
I19: n | J19: GREEN | K19: 0 | Q19: n | R19: GREEN | S19: 0
I20: n | J20: GREEN | K20: 0 | Q20: n | R20: GREEN | S20: 0
I21: n | J21: GREEN | K21: 0 | Q21: n | R21: GREEN | S21: 0
I22: n | J22: GREEN | K22: 0 | Q22: n | R22: GREEN | S22: 0
I23: n | J23: GREEN | K23: 0 | Q23: n | R23: GREEN | S23: 0
I24: n | J24: GREEN | K24: 0 | Q24: n | R24: GREEN | S24: 0
I25: n | J25: GREEN | K25: 0 | Q25: n | R25: GREEN | S25: 0
